Workbook

Sheet AER only (hidden)
B1: Data in these columns used for data validation and database purposes.
B2: Date last modified: | C2: 2016-08-08 | D2: added new business names, improved column heading formatting
AC4: FOR ELECTRICITY BUSINESSES ONLY
AC5: Feeder Types | AG5: TasNetworks (D) | AH5: MAIFI flag | AI5: Feeder Names
AC6: CBD | AD6: Urban | AE6: Short rural | AF6: long rural | AG6: EXTRA
B7: dms_TradingName_List | C7: dms_TradingNameFull_List | D7: dms_ABN_List | E7: dms_JurisdictionList | F7: dms_Sector_List | G7: dms_Segment_List | H7: dms_FormControl_List | I7: dms_RPT_List | J7: dms_RPTMonth_List | K7: dms_CRCPlength_List | L7: dms_FRCPlength_List | M7: dms_663_List | N7: dms_DeterminationRef_List | O7: dms_Addr1_List | P7: dms_Addr2_List | Q7: dms_Suburb_List | R7: dms_State_List | S7: dms_PostCode_List | T7: dms_PAddr1_List | U7: dms_PAddr2_List | V7: dms_PSuburb_List | W7: dms_PState_List | X7: dms_PPostCode_List | Y7: dms_ContactName1_List | Z7: dms_ContactPh1_List | AA7: dms_ContactEmail_List | AC7: dms_CBD_flag | AD7: dms_Urban_flag | AE7: dms_ShortRural_flag | AF7: dms_LongRural_flag | AG7: dms_FeederType_5_flag | AH7: dms_MAIFI_flag_List | AI7: dms_FeederName_1 | AJ7: dms_FeederName_2 | AK7: dms_FeederName_3 | AL7: dms_FeederName_4 | AM7: dms_FeederName_5
B8: ActewAGL Distribution | C8: ActewAGL Distribution | D8: 76670568688 | E8: ACT | F8: Electricity | G8: Distribution | H8: Revenue cap | I8: Financial | J8: June | K8: 5 | L8: 5 | M8: 5 | N8: 2014-19 Distribution Determination | O8: 40 Bunda Street | Q8: CANBERRA | R8: ACT | S8: 2600 | T8: GPO BOX 366 | V8: CANBERRA | W8: ACT | X8: 2601 | Y8: Robert Walker | Z8: 02 6248 3847 | AA8: robert.walker@actewagle.com.au | AC8: NO | AD8: YES | AE8: YES | AF8: NO | AG8: NO | AI8: CBD | AJ8: Urban | AK8: Short rural | AL8: Long rural | AN8: ActewAGL Distribution
B9: ActewAGL Distribution (Tx Assets) | C9: ActewAGL Distribution (Tx Assets) | D9: 76670568688 | E9: ACT | F9: Electricity | G9: Distribution | H9: Revenue cap | I9: Financial | J9: June | K9: 5 | L9: 5 | M9: 5 | N9: distribution determination | O9: 40 Bunda Street | Q9: CANBERRA | R9: ACT | S9: 2600 | T9: GPO BOX 366 | V9: CANBERRA | W9: ACT | X9: 2601 | Y9: Robert Walker | Z9: 02 6248 3847 | AA9: robert.walker@actewagle.com.au | AI9: CBD | AJ9: Urban | AK9: Short rural | AL9: Long rural | AN9: ActewAGL Distribution (Tx Assets)
B10: ActewAGL Gas | C10: ActewAGL Gas | D10: 76670568688 | E10: ACT | F10: Gas | G10: Distribution | H10: Weighted average price cap | I10: Financial | J10: June | K10: 5 | L10: 5 | M10: x | O10: 40 Bunda Street | Q10: CANBERRA | R10: ACT | S10: 2600 | T10: GPO BOX 366 | V10: CANBERRA | W10: ACT | X10: 2601 | Y10: Philip Deamer | Z10: 02 6248 3438 | AA10: GasAAReview@actewagl.com.au | AN10: ActewAGL Gas
B11: AGN (SA) | C11: AGN (SA) | D11: 78551685 | E11: SA | F11: Gas | G11: Distribution | H11: Revenue cap | I11: Financial | J11: June | K11: 5 | L11: 5 | M11: 5 | N11: distribution determination | R11: SA | AI11: CBD | AJ11: Urban | AK11: Short rural | AL11: Long rural | AN11: AGN (SA)
B12: AGN (Victoria) | C12: Australian Gas Networks Limited | D12: 19078551685 | E12: Vic | F12: Gas | G12: Distribution | H12: Weighted average price cap | I12: Calendar | J12: December | K12: 5 | L12: 5 | M12: x | O12: Level 10 | P12: 81 Flinders Street | Q12: ADELAIDE | R12: SA | S12: 5000 | Z12: 08 8227 1500 | AN12: AGN (Victoria)
B13: Amadeus | C13: APT Pipelines (NT) Pty Ltd | D13: 39009737393 | E13: NT | F13: Gas | G13: Transmission | H13: Weighted average price cap | I13: Financial | J13: June | K13: 5 | L13: 5 | M13: x | N13: n/a | O13: Level 19, HSBC Building | P13: 580 George Street | Q13: SYDNEY | R13: NSW | S13: 2000 | T13: Level 19, HSBC Building | U13: 580 George Street | V13: SYDNEY | W13: NSW | X13: 2000 | Y13: Alexandra Curran | Z13: 02 9275 0020 | AA13: alexandra.curran@apa.com.au | AN13: Amadeus
B14: APA GasNet | C14: APA VTS Australia Limited | D14: 79096457868 | E14: Vic | F14: Gas | G14: Transmission | H14: Weighted average price cap | I14: Calendar | J14: December | K14: 5 | L14: 5 | M14: x | O14: Level 19, HSBC Building | P14: 580 George Street | Q14: SYDNEY | R14: NSW | S14: 2000 | T14: PO Box R41 | V14: ROYAL EXCHANGE | W14: NSW | X14: 1225 | Z14: 02 9693 0000 | AN14: APA GasNet
B15: Ausgrid | C15: Ausgrid | D15: 67505337385 | E15: NSW | F15: Electricity | G15: Distribution | H15: Revenue cap | I15: Financial | J15: June | K15: 5 | L15: 5 | M15: 5 | N15: 2014-19 Distribution Determination | O15: 570 George St | Q15: SYDNEY | R15: NSW | S15: 2000 | Y15: John Thomson | Z15: (02) 9269 2312 | AA15: john.thomson@ausgrid.com.au | AC15: YES | AD15: YES | AE15: YES | AF15: YES | AG15: NO | AI15: CBD | AJ15: Urban | AK15: Short rural | AL15: Long rural | AN15: Ausgrid
B16: Ausgrid (Tx Assets) | C16: Ausgrid (Tx Assets) | D16: 67505337385 | E16: NSW | F16: Electricity | G16: Distribution | H16: Revenue cap | I16: Financial | J16: June | K16: 5 | L16: 5 | M16: 5 | N16: distribution determination | R16: NSW | AI16: CBD | AJ16: Urban | AK16: Short rural | AL16: Long rural | AN16: Ausgrid (Tx Assets)
B17: AusNet (D) | C17: AusNet Services (D) | D17: 91064651118 | E17: Vic | F17: Electricity | G17: Distribution | H17: Revenue cap | I17: Calendar | J17: December | K17: 5 | L17: 5 | M17: 2 | N17: 2016-20 Distribution Determination | O17: Level 32 | P17: 2 Southbank Boulevard | Q17: SOUTHBANK | R17: Vic | S17: 3006 | T17: Locked Bag 14051 | V17: MELBOURNE CITY MAIL CENTRE | W17: VIC | X17: 8001 | Y17: Hannah Williams | Z17: 03 9683 4088 | AA17: hwilliams@powercor.com.au | AD17: YES | AE17: YES | AF17: YES | AG17: NO | AI17: CBD | AJ17: Urban | AK17: Short rural | AL17: Long rural | AN17: AusNet (D)
B18: AusNet (Gas) | C18: AusNet Gas Services | E18: Vic | F18: Gas | G18: Distribution | H18: Weighted average price cap | I18: Calendar | J18: December | K18: 5 | L18: 5 | M18: X | AN18: AusNet (Gas)
B19: AusNet (T) | C19: AusNet (T) | D19: 78079798173 | E19: Vic | F19: Electricity | G19: Transmission | H19: Revenue cap | I19: Financial | J19: March | K19: 5 | L19: 5 | M19: 2 | N19: transmission determination | O19: Level 32 | P19: 2 Southbank Boulevard | Q19: SOUTHBANK | R19: Vic | S19: 3006 | Y19: Tom Hallam | Z19: 03 9695 6617 | AA19: Thomas.hallam@SP-Ausnet.com.au | AI19: CBD | AJ19: Urban | AK19: Short rural | AL19: Long rural | AN19: AusNet (T)
B20: Australian Distribution Co. | C20: Australian Distribution Co. | D20: 11222333444 | E20: - | F20: Electricity | G20: Distribution | H20: Revenue cap | I20: Financial | J20: June | K20: 5 | L20: 5 | M20: 2 | N20: distribution determination | O20: 123 Straight Street | Q20: SYDNEY | R20: NSW | S20: 2000 | T20: PO Box 123 | V20: SYDNEY | W20: NSW | X20: 2000 | Y20: Bob Smith | Z20: 02 1234 5678 | AA20: bob@auselec.net.au | AI20: CBD | AJ20: Urban | AK20: Short rural | AL20: Long rural | AN20: Australian Distribution Co.
B21: Australian Transmission Co. | C21: Australian Transmission Co. | D21: 11222333444 | E21: - | F21: Electricity | G21: Transmission | H21: Revenue cap | I21: Financial | J21: June | K21: 5 | L21: 5 | M21: 5 | N21: transmission determination | O21: 123 Straight Street | Q21: SYDNEY | R21: NSW | S21: 2000 | T21: PO Box 123 | V21: SYDNEY | W21: NSW | X21: 2000 | Y21: Bob Smith | Z21: 02 1234 5678 | AA21: bob@auselec.net.au | AI21: CBD | AJ21: Urban | AK21: Short rural | AL21: Long rural | AN21: Australian Transmission Co.
B22: CitiPower | C22: CitiPower | D22: 76064651056 | E22: Vic | F22: Electricity | G22: Distribution | H22: Revenue cap | I22: Calendar | J22: December | K22: 5 | L22: 5 | M22: 2 | N22: 2016-20 Distribution Determination | O22: 40 Market Street | Q22: MELBOURNE | R22: Vic | S22: 3000 | T22: Locked Bag 14090 | V22: MELBOURNE | W22: VIC | X22: 8001 | Y22: Hannah Williams | Z22: 03 9683 4088 | AA22: hwilliams@powercor.com.au | AC22: YES | AD22: YES | AE22: NO | AF22: NO | AG22: NO | AI22: CBD | AJ22: Urban | AK22: Short rural | AL22: Long rural | AN22: CitiPower
B23: Directlink | C23: Directlink | D23: 16779340889 | E23: Qld | F23: Electricity | G23: Transmission | H23: Revenue cap | I23: Financial | J23: June | K23: 9 | L23: 5 | M23: 5 | N23: transmission determination | R23: NSW | AI23: CBD | AJ23: Urban | AK23: Short rural | AL23: Long rural | AN23: Directlink
B24: ElectraNet | C24: ElectraNet | D24: 41094482416 | E24: SA | F24: Electricity | G24: Transmission | H24: Revenue cap | I24: Financial | J24: June | K24: 5 | L24: 5 | M24: 5 | N24: transmission determination | O24: 52-55 East Terrace | P24: Rymill Park | Q24: ADELAIDE | R24: SA | S24: 5000 | T24: PO Box 7096 | U24: Hutt Street Post Office | V24: ADELAIDE | W24: SA | Y24: Bill Jackson | Z24: 08 8404 7969 | AA24: jackson.bill@electranet.com.au | AI24: CBD | AJ24: Urban | AK24: Short rural | AL24: Long rural | AN24: ElectraNet
B25: Endeavour Energy | C25: Endeavour Energy | D25: 59253130878 | E25: NSW | F25: Electricity | G25: Distribution | H25: Revenue cap | I25: Financial | J25: June | K25: 5 | L25: 5 | M25: 5 | N25: 2014-19 Distribution Determination | O25: 51 Huntingwood Drive | Q25: HUNTINGWOOD | R25: NSW | S25: 2148 | T25: PO Box 811 | V25: SEVEN HILLS | W25: NSW | Y25: Jon Hocking | Z25: 02 9853 4386 / 0407 348 156 | AA25: Jon.Hocking@Endeavourenergy.com.au | AC25: NO | AD25: YES | AE25: YES | AF25: YES | AG25: NO | AI25: CBD | AJ25: Urban | AK25: Short rural | AL25: Long rural | AN25: Endeavour Energy
B26: Energex | C26: Energex | D26: 40078849055 | E26: Qld | F26: Electricity | G26: Distribution | H26: Revenue cap | I26: Financial | J26: June | K26: 5 | L26: 5 | M26: 5 | N26: 2015-20 Distribution Determination | O26: 26 Reddacliff Street | Q26: NEWSTEAD | R26: Qld | S26: 4006 | T26: 26 Reddacliff Street | V26: NEWSTEAD | W26: QLD | X26: 4006 | Y26: Nicola Roscoe | Z26: 07 3664 5891 | AA26: nicolaroscoe@energex.com.au | AC26: YES | AD26: YES | AE26: YES | AF26: NO | AG26: NO | AI26: CBD | AJ26: Urban | AK26: Short rural | AL26: Long rural | AN26: Energex
B27: Ergon Energy | C27: Ergon Energy | D27: 50087646062 | E27: Qld | F27: Electricity | G27: Distribution | H27: Revenue cap | I27: Financial | J27: June | K27: 5 | L27: 5 | M27: 5 | N27: 2015-20 Distribution Determination | O27: 22 Walker Street | Q27: TOWNSVILLE | R27: Qld | S27: 4810 | T27: Po Box 264 | V27: FORTITUDE VALLEY | W27: QLD | X27: 4006 | Y27: Jenny Doyle, Group Manager Regulatory Affairs | Z27: (07) 3851 6416 | AA27: jenny.doyle@ergon.com.au | AC27: NO | AD27: YES | AE27: YES | AF27: YES | AG27: NO | AI27: CBD | AJ27: Urban | AK27: Short rural | AL27: Long rural | AN27: Ergon Energy
B28: Essential Energy | C28: Essential Energy | D28: 37428185226 | E28: NSW | F28: Electricity | G28: Distribution | H28: Revenue cap | I28: Financial | J28: June | K28: 5 | L28: 5 | M28: 5 | N28: 2014-19 Distribution Determination | O28: 8 Buller Street | Q28: PORT MACQUARIE | R28: NSW | T28: PO Box 5730 | V28: PORT MACQUARIE | W28: NSW | Y28: Catherine Waddell | Z28: 02 6338 3553 | AA28: catherine.waddell@essentialenergy.com.au | AE28: YES | AF28: YES | AG28: NO | AI28: CBD | AJ28: Urban | AK28: Short rural | AL28: Long rural | AN28: Essential Energy
B29: Jemena Electricity | C29: Jemena Electricity | D29: 82064651083 | E29: Vic | F29: Electricity | G29: Distribution | H29: Revenue cap | I29: Calendar | J29: December | K29: 5 | L29: 5 | M29: 2 | N29: 2016-20 Distribution Determination | O29: Level 16 | P29: 567 Collins Street | Q29: MELBOURNE | R29: VIC | S29: 3000 | T29: PO Box 16182 | V29: MELBOURNE | W29: VIC | X29: 8001 | Y29: Robert McMillan | Z29: 03 9173 7000 | AA29: robert.mcmillan@jemena.com.au | AE29: YES | AF29: NO | AG29: NO | AI29: CBD | AJ29: Urban | AK29: Short rural | AL29: Long rural | AN29: Jemena Electricity
B30: JGN | C30: Jemena Gas Networks | E30: NSW | F30: Gas | G30: Distribution | H30: Weighted average price cap | I30: Financial | J30: June | K30: 5 | L30: 5 | AN30: JGN
B31: Multinet Gas | C31: Multinet Gas (DB No.1) Pty Ltd (ACN 086 026 986), Multinet Gas (DB No.2) Pty Ltd (ACN 086 230 122) | D31: 86026986 | E31: Vic | F31: Gas | G31: Distribution | H31: Weighted average price cap | I31: Calendar | J31: December | K31: 5 | L31: 5 | M31: x | AN31: Multinet Gas
B32: Murraylink | C32: Murraylink | D32: 79181207909 | E32: SA | F32: Electricity | G32: Transmission | H32: Revenue cap | I32: Financial | J32: June | K32: 5 | L32: 5 | M32: 5 | N32: transmission determination | AI32: CBD | AJ32: Urban | AK32: Short rural | AL32: Long rural | AN32: Murraylink
B33: Powercor Australia | C33: Powercor Australia | D33: 89064651109 | E33: Vic | F33: Electricity | G33: Distribution | H33: Revenue cap | I33: Calendar | J33: December | K33: 5 | L33: 5 | M33: 2 | N33: 2016-20 Distribution Determination | O33: 40 Market Street | Q33: MELBOURNE | R33: Vic | S33: 3000 | T33: Locked bag 14090 | V33: MELBOURNE | W33: VIC | X33: 8001 | Y33: Hannah Williams | Z33: 03 9683 4088 | AA33: hwilliams@powercor.com.au | AE33: YES | AF33: YES | AG33: NO | AI33: CBD | AJ33: Urban | AK33: Short rural | AL33: Long rural | AN33: Powercor Australia
B34: Powerlink | C34: Queensland Electricity Transmission Corporation Limited trading as Powerlink Queensland | D34: 82078849233 | E34: Qld | F34: Electricity | G34: Transmission | H34: Revenue cap | I34: Financial | J34: June | K34: 5 | L34: 5 | M34: 5 | N34: transmission determination | O34: 33 Harold St | Q34: VIRGINIA | R34: Qld | S34: 4014 | T34: PO Box 1193 | V34: VIRGINIA | W34: QLD | X34: 4014 | Y34: Jennifer Harris | Z34: 07 3860 2667 | AA34: jharris@powerlink.com.au | AI34: CBD | AJ34: Urban | AK34: Short rural | AL34: Long rural | AN34: Powerlink
B35: Roma to Brisbane Pipeline | C35: APT Petroleum Pipelines Limited t/a Roma to Brisbane Pipeline | D35: 009 737 393 | E35: Qld | F35: Gas | G35: Transmission | H35: Revenue cap | I35: Financial | J35: June | K35: 5 | L35: 5 | M35: x | N35: n/a | AI35: CBD | AJ35: Urban | AK35: Short rural | AL35: Long rural | AN35: Roma to Brisbane Pipeline
B36: SA Power Networks | C36: SA Power Networks | D36: 13332330749 | E36: SA | F36: Electricity | G36: Distribution | H36: Revenue cap | I36: Financial | J36: June | K36: 5 | L36: 5 | M36: 5 | N36: 2015-20 Distribution Determination | O36: 1 Anzac Highway | Q36: KESWICK | R36: SA | S36: 5035 | T36: GPO Box 77 | V36: ADELAIDE | W36: SA | Y36: Damien O'Connor | Z36: 08 8404 5066 | AA36: damien.oconnor@sapowernetworks.com.au | AE36: YES | AF36: YES | AG36: NO | AI36: CBD | AJ36: Urban | AK36: Short rural | AL36: Long rural | AN36: SA Power Networks
B37: TasNetworks (D) | C37: TasNetworks (D) | D37: 24167357299 | E37: Tas | F37: Electricity | G37: Distribution | H37: Revenue cap | I37: Financial | J37: June | K37: 5 | L37: 5 | M37: 5 | N37: distribution determination | O37: 21 Kirksway Place | Q37: HOBART | R37: Tas | S37: 7000 | T37: GPO Box 191 | V37: HOBART | W37: Tas | Y37: Leigh Mayne | Z37: 03 6270 3691 | AA37: rrp2012@auroraenergy.com.au | AE37: YES | AF37: YES | AG37: YES | AI37: Critical Infrastructure | AJ37: High density commercial | AK37: Urban | AL37: High density rural | AM37: Low density rural | AN37: TasNetworks (D)
B38: TasNetworks (T) | C38: TasNetworks (T) | D38: 24167357299 | E38: Tas | F38: Electricity | G38: Transmission | H38: Revenue cap | I38: Financial | J38: March | K38: 5 | L38: 5 | M38: 5 | N38: transmission determination | O38: 1-7 Maria Street | Q38: LENAH VALLEY | R38: Tas | S38: 7008 | T38: PO Box 606 | V38: MOONAH | W38: Tas | Y38: Heath Dillon | Z38: 03 6274 3664 | AA38: heath.dillon@transend.com.au | AI38: CBD | AJ38: Urban | AK38: Short rural | AL38: Long rural | AN38: TasNetworks (T)
B39: TransGrid | C39: TransGrid | D39: 19622755774 | E39: NSW | F39: Electricity | G39: Transmission | H39: Revenue cap | I39: Financial | J39: June | K39: 5 | L39: 4 | M39: 5 | N39: transmission determination | O39: 180 Thomas Street | Q39: HAYMARKET | R39: NSW | S39: 2000 | T39: PO Box A1000 | V39: SYDNEY SOUTH | W39: NSW | Y39: Andrew Kingsmill | Z39: 02 9284 3149 | AA39: andrew.kingsmill@transgrid.com.au | AI39: CBD | AJ39: Urban | AK39: Short rural | AL39: Long rural | AN39: TransGrid
B40: United Energy | C40: United Energy | D40: 70064651029 | E40: Vic | F40: Electricity | G40: Distribution | H40: Revenue cap | I40: Calendar | J40: December | K40: 5 | L40: 5 | M40: 2 | N40: 2016-20 Distribution Determination | O40: Level 3 | P40: 6 Nexus Court | Q40: MULGRAVE | R40: Vic | S40: 3149 | T40: PO Box 449 | V40: MOUNT WAVERLEY | W40: VIC | X40: 3170 | Y40: Mathew Abraham | Z40: 03 8846 9758 | AA40: mathew.abraham@ue.com.au | AE40: YES | AF40: NO | AG40: NO | AI40: CBD | AJ40: Urban | AK40: Short rural | AL40: Long rural | AN40: United Energy
B41: Western Power (D) | C41: Western Power (D) | D41: 18540492861 | E41: WA | F41: Electricity | G41: Distribution | H41: Revenue cap | I41: Financial | J41: June | K41: 12 | L41: 4 | M41: x | N41: distribution determination | O41: 363 Wellington Street | Q41: PERTH | R41: WA | S41: 6000 | T41: GPO Box L921 | V41: PERTH | W41: WA | X41: 6842 | Y41: Judy Hunter | Z41: 08 9326 6239 | AA41: judy.hunter@westernpower.com.au | AE41: YES | AF41: YES | AG41: NO | AH41: NO | AI41: CBD | AJ41: Urban | AK41: Short rural | AL41: Long rural | AN41: Western Power (D)
B42: Western Power (T) | C42: Western Power (T) | D42: 18540492861 | E42: WA | F42: Electricity | G42: Transmission | H42: Revenue cap | I42: Financial | J42: June | K42: 12 | L42: 4 | M42: x | N42: transmission determination | O42: 363 Wellington Street | Q42: PERTH | R42: WA | S42: 6000 | T42: GPO Box L921 | V42: PERTH | W42: WA | X42: 6842 | Y42: Judy Hunter | Z42: 08 9326 6239 | AA42: judy.hunter@westernpower.com.au | AE42: YES | AF42: YES | AG42: NO | AI42: CBD | AJ42: Urban | AK42: Short rural | AL42: Long rural | AN42: Western Power (T)
W45: For EB & Reset RINs only
B46: The Reg Year Ending (dms_RYE) must be set to the last year of the regulatory period. For forecast data is is usually (FRCP_y5) for actual it is a single year (CRY). For historical actual data the RYE will need to be set manually in the business details sheet by setting the dms_Multiyear_flag to 1 and putting the correct value in 'dms_Specified_FinalYear. See cells C67:C68 | G46: =IF(dms_RPT="financial",VALUE(LEFT(CRCP_y1,4)-1)&"-"&TEXT(VALUE(RIGHT(CRCP_y1,2)-1),"00"),VALUE(LEFT(CRCP_y1,4)-1)) -> 2009-10 | N46: Drop down selector box for CA & Reset RINs. | O46: For CA & Reset RINs only | W46: for DNSP only | AI46: Reason for interruption | AJ46: dms_Reason_Interruption_Detailed | AK46: dms_Reason_Interruption
B47: dms_Model_List | C47: DELETE NR 'CRY' IF NOT AN ANNUAL RIN (EB, CA , ARR) | E47: dms_RYE_Formula_Result | N47: dms_0203_ProjectType | O47: dms_020303_01_UOM | P47: dms_020501_01_UOM | Q47: dms_020501_02_UOM | R47: dms_020501_03_UOM | S47: dms_020501_04_UOM | T47: dms_020603_01_UOM | U47: dms_040102_01_UOM | V47: dms_040102_04_UOM | W47: dms_030601_01_UOM | X47: dms_030601_02_UOM | Y47: dms_030701_01_UOM | Z47: dms_030702_01_UOM | AA47: dms_030703_01_UOM | AI47: Animal | AJ47: Animal impact | AK47: Animal
B48: ARR | C48: ANNUAL REPORTING STATEMENT | E48: =LEFT(dms_SingleYear_FinalYear_Result,2)&RIGHT(dms_SingleYear_FinalYear_Result,2) -> 2016 | F48: =LEFT(dms_SingleYear_FinalYear_Result,2)&RIGHT(dms_SingleYear_FinalYear_Result,2) | H48: Formula errors are OK | N48: New line on new route - single circuit | O48: Circuit line length in km | P48: 0's | Q48: 0's | R48: 0's | S48: 0's | T48: 0's | U48: 0's | V48: days | W48: minutes/customer | X48: minutes/customer | Y48: Customer / km | Z48: % | AA48: km | AJ48: Animal nesting/burrowing, etc and other | AK48: Asset failure
B49: CA | C49: CATEGORY ANALYSIS | E49: =LEFT(dms_SingleYear_FinalYear_Result,2)&RIGHT(dms_SingleYear_FinalYear_Result,2) -> 2016 | F49: =LEFT(dms_SingleYear_FinalYear_Result,2)&RIGHT(dms_SingleYear_FinalYear_Result,2) | H49: Formula errors are OK | N49: New line on new route - dual circuit | O49: Circuit line length in km | P49: 0's | Q49: 0's | R49: 0's | S49: 0's | T49: 0's | U49: 0's | V49: 0's | W49: minutes/customer | X49: minutes/customer | Y49: MWh/customer | Z49: Number of spans | AJ49: Other | AK49: Other
B50: CPI | C50: CPI | N50: New line on new route - other | O50: Circuit line length in km | P50: MVA added | Q50: MVA added | R50: MVA added | S50: MVA added | T50: 0's | U50: 0's | V50: $0s | W50: interruptions/customer | X50: interruptions/customer | Y50: kVA / customer | Z50: Number of spans | AI50: Asset failure | AJ50: LV | AK50: Overloads
B51: EB | C51: ECONOMIC BENCHMARKING | E51: =LEFT(dms_SingleYear_FinalYear_Result,2)&RIGHT(dms_SingleYear_FinalYear_Result,2) -> 2016 | F51: =LEFT(dms_SingleYear_FinalYear_Result,2)&RIGHT(dms_SingleYear_FinalYear_Result,2) | H51: Formula errors are OK | N51: Line rebuild over existing route - single circuit | O51: Circuit line length in km | P51: 0's | Q51: 0's | R51: 0's | S51: 0's | T51: 0's | U51: $0s | V51: 0's | W51: interruptions/customer | X51: interruptions/customer | Z51: Number of spans | AJ51: Distribution substation | AK51: Planned
B52: PTRM | C52: POST TAX REVENUE MODEL | E52: =LEFT(dms_MultiYear_FinalYear_Result,2)&RIGHT(dms_MultiYear_FinalYear_Result,2) -> 2020 | F52: =LEFT(dms_MultiYear_FinalYear_Result,2)&RIGHT(dms_MultiYear_FinalYear_Result,2) | N52: Line rebuild over existing route - dual circuit | O52: Number | P52: total spend $0s | Q52: total spend $0s | R52: total spend $0s | S52: total spend $0s | T52: (per cent) | Z52: Number of spans | AJ52: HV | AK52: Network business
B53: Reset | C53: REGULATORY REPORTING STATEMENT | E53: =LEFT(dms_MultiYear_FinalYear_Result,2)&RIGHT(dms_MultiYear_FinalYear_Result,2) -> 2020 | F53: =LEFT(dms_MultiYear_FinalYear_Result,2)&RIGHT(dms_MultiYear_FinalYear_Result,2) | H53: Formula errors are OK | N53: Reconductor - Single circuit | O53: Number | P53: net circuit km added | Q53: net circuit km added | R53: net circuit km added | S53: net circuit km added | Z53: Years | AJ53: Zone substation | AK53: Third party
B54: RFM | C54: ROLL FORWARD MODEL | E54: =LEFT(dms_CRCP_FinalYear_Result,2)&RIGHT(dms_CRCP_FinalYear_Result,2) -> 2016 | F54: =LEFT(dms_CRCP_FinalYear_Result,2)&RIGHT(dms_CRCP_FinalYear_Result,2) | N54: Reconductor - Dual circuit | O54: Number | P54: total spend $0s | Q54: total spend $0s | R54: total spend $0s | S54: total spend $0s | Z54: Years | AJ54: Subtransmission | AK54: Unknown
B55: WACC | C55: WEIGHTED AVERAGE COST OF CAPITAL | E55: =LEFT(dms_MultiYear_FinalYear_Result,2)&RIGHT(dms_MultiYear_FinalYear_Result,2) -> 2020 | F55: =LEFT(dms_MultiYear_FinalYear_Result,2)&RIGHT(dms_MultiYear_FinalYear_Result,2) | N55: Other | P55: net circuit km added | Q55: net circuit km added | R55: net circuit km added | S55: net circuit km added | Z55: Trees | AI55: Other | AJ55: insert description of 'other' | AK55: Vegetation
P56: total spend $0s | Q56: total spend $0s | R56: total spend $0s | S56: total spend $0s | Z56: Trees | AI56: Overloads | AJ56: Network error | AK56: Weather
P57: 0's | R57: $0s | Z57: Defects | AI57: Planned | AJ57: Switching and protection error | AK57: 2 - STPIS Exclusion (3.3)(a)
P58: 0's | Z58: Defects | AI58: Network business | AJ58: Fire | AK58: 3 - STPIS Exclusion (3.3)(a)
P59: 0's | Z59: Spans | AJ59: Other | AK59: 4 - STPIS Exclusion (3.3)(a)
P60: $0s | Z60: km | AI60: Third party | AJ60: Dig-in | AK60: 5 - STPIS Exclusion (3.3)(a)
Z61: Spans | AJ61: Unauthorised access | AK61: 6 - STPIS Exclusion (3.3)(a)
AJ62: Vehicle impact | AK62: 7 - STPIS Exclusion (3.3)(a)
AJ63: Unknown
B64: For all files either AER or business needs to be able to specify the type of submission | C64: For PTRM & RFM templates we must provide a choice in case they change their form of control - otherwise it is drawn from the business specific lookup table above. | E64: These are indeces and lookup values for various dates. All step from the value placed in FRCP_y1 on the business and other details worksheet | W64: for TNSP only | AJ64: Blow-in/Fall-in - NSP responsibility
B65: dms_SourceList | C65: dms_FormControl_Choices | E65: dms_FRCPlength_Num_List | F65: dms_FinalYear_List | G65: dms_CRCPlength_Num_List | H65: dms_CFinalYear_List | I65: dms_FRCP_years | K65: dms_CRCP_years | M65: dms_CRCP_index | W65: dms_030601_01_UOM | Y65: dms_030701_01_UOM | Z65: dms_030702_01_UOM | AI65: Unknown | AJ65: Grow-in - NSP responsibility
B66: After appeal | C66: Revenue cap | E66: 1 | F66: dms_FRCP_y1 | G66: 1 | H66: CRCP_y1 | I66: =FRCP_y1 -> 2015-16 | J66: dms_FRCP_y1 | K66: =IF(dms_RPT="financial",VALUE(LEFT(dms_FRCP_y1,4)-1)&"-"&TEXT(VALUE(MID(dms_FRCP_y1,3,2)),"00"),VALUE(LEFT(dms_FRCP_y1,4)-1)) -> 2014-15 | L66: dms_CRCP_yZ | M66: 1 | W66: % | Y66: Number of spans | Z66: km | AI66: Vegetation | AJ66: Blow-in/Fall-in - Other responsible party
B67: Draft decision | C67: Revenue yield | E67: 2 | F67: dms_FRCP_y2 | G67: 2 | H67: CRCP_y2 | I67: =IF(dms_RPT="financial",VALUE(LEFT(dms_FRCP_y1,4)+1)&"-"&TEXT(VALUE(RIGHT(dms_FRCP_y1,2)+1),"00"),VALUE(LEFT(dms_FRCP_y1,4)+1)) -> 2016-17 | J67: dms_FRCP_y2 | K67: =IF(dms_RPT="financial",VALUE(LEFT(dms_CRCP_yZ,4)-1)&"-"&TEXT(VALUE(MID(dms_CRCP_yZ,3,2)),"00"),VALUE(LEFT(dms_CRCP_yZ,4)-1)) -> 2013-14 | L67: dms_CRCP_yY | M67: 2 | W67: number | Y67: Years | Z67: % | AJ67: Grow-in - Other responsible party
B68: Final decision | C68: Weighted average price cap | E68: 3 | F68: dms_FRCP_y3 | G68: 3 | H68: CRCP_y3 | I68: =IF(dms_RPT="financial",VALUE(LEFT(dms_FRCP_y2,4)+1)&"-"&TEXT(VALUE(RIGHT(dms_FRCP_y2,2)+1),"00"),VALUE(LEFT(dms_FRCP_y2,4)+1)) -> 2017-18 | J68: dms_FRCP_y3 | K68: =IF(dms_RPT="financial",VALUE(LEFT(dms_CRCP_yY,4)-1)&"-"&TEXT(VALUE(MID(dms_CRCP_yY,3,2)),"00"),VALUE(LEFT(dms_CRCP_yY,4)-1)) -> 2012-13 | L68: dms_CRCP_yX | M68: 3 | W68: number | Y68: Trees | Z68: km
B69: PTRM update 1 | E69: 4 | F69: dms_FRCP_y4 | G69: 4 | H69: CRCP_y4 | I69: =IF(dms_RPT="financial",VALUE(LEFT(dms_FRCP_y3,4)+1)&"-"&TEXT(VALUE(RIGHT(dms_FRCP_y3,2)+1),"00"),VALUE(LEFT(dms_FRCP_y3,4)+1)) -> 2018-19 | J69: dms_FRCP_y4 | K69: =IF(dms_RPT="financial",VALUE(LEFT(dms_CRCP_yX,4)-1)&"-"&TEXT(VALUE(MID(dms_CRCP_yX,3,2)),"00"),VALUE(LEFT(dms_CRCP_yX,4)-1)) -> 2011-12 | L69: dms_CRCP_yW | M69: 4 | W69: % | Y69: Defects | Z69: number
B70: PTRM update 2 | E70: 5 | F70: dms_FRCP_y5 | G70: 5 | H70: CRCP_y5 | I70: =IF(dms_RPT="financial",VALUE(LEFT(dms_FRCP_y4,4)+1)&"-"&TEXT(VALUE(RIGHT(dms_FRCP_y4,2)+1),"00"),VALUE(LEFT(dms_FRCP_y4,4)+1)) -> 2019-20 | J70: dms_FRCP_y5 | K70: =IF(dms_RPT="financial",VALUE(LEFT(dms_CRCP_yW,4)-1)&"-"&TEXT(VALUE(MID(dms_CRCP_yW,3,2)),"00"),VALUE(LEFT(dms_CRCP_yW,4)-1)) -> 2010-11 | L70: dms_CRCP_yV | M70: 5 | W70: number | Y70: Number of spans | AI70: Weather
B71: PTRM update 3 | E71: 6 | F71: dms_FRCP_y6 | G71: 6 | H71: CRCP_y6 | I71: =IF(dms_RPT="financial",VALUE(LEFT(dms_FRCP_y5,4)+1)&"-"&TEXT(VALUE(RIGHT(dms_FRCP_y5,2)+1),"00"),VALUE(LEFT(dms_FRCP_y5,4)+1)) -> 2020-21 | J71: dms_FRCP_y6 | K71: =IF(dms_RPT="financial",VALUE(LEFT(dms_CRCP_yV,4)-1)&"-"&TEXT(VALUE(MID(dms_CRCP_yV,3,2)),"00"),VALUE(LEFT(dms_CRCP_yV,4)-1)) -> 2009-10 | L71: dms_CRCP_yU | M71: 6 | W71: number | Y71: km | AI71: 2 - STPIS Exclusion (3.3)(a)
B72: PTRM update 4 | E72: 7 | F72: dms_FRCP_y7 | G72: 7 | H72: CRCP_y7 | I72: =IF(dms_RPT="financial",VALUE(LEFT(dms_FRCP_y6,4)+1)&"-"&TEXT(VALUE(RIGHT(dms_FRCP_y6,2)+1),"00"),VALUE(LEFT(dms_FRCP_y6,4)+1)) -> 2021-22 | J72: dms_FRCP_y7 | K72: =IF(dms_RPT="financial",VALUE(LEFT(dms_CRCP_yU,4)-1)&"-"&TEXT(VALUE(MID(dms_CRCP_yU,3,2)),"00"),VALUE(LEFT(dms_CRCP_yU,4)-1)) -> 2008-09 | L72: dms_CRCP_yT | M72: 7 | W72: % | Y72: km | AI72: 3 - STPIS Exclusion (3.3)(a)
B73: PTRM update 5 | E73: 8 | F73: dms_FRCP_y8 | G73: 8 | H73: CRCP_y8 | I73: =IF(dms_RPT="financial",VALUE(LEFT(dms_FRCP_y7,4)+1)&"-"&TEXT(VALUE(RIGHT(dms_FRCP_y7,2)+1),"00"),VALUE(LEFT(dms_FRCP_y7,4)+1)) -> 2022-23 | J73: dms_FRCP_y8 | K73: =IF(dms_RPT="financial",VALUE(LEFT(dms_CRCP_yT,4)-1)&"-"&TEXT(VALUE(MID(dms_CRCP_yT,3,2)),"00"),VALUE(LEFT(dms_CRCP_yT,4)-1)) -> 2007-08 | L73: dms_CRCP_yS | M73: 8 | W73: number | Y73: Number of spans | AI73: 4 - STPIS Exclusion (3.3)(a)
B74: PTRM update 6 | E74: 9 | F74: dms_FRCP_y9 | G74: 9 | H74: CRCP_y9 | I74: =IF(dms_RPT="financial",VALUE(LEFT(dms_FRCP_y8,4)+1)&"-"&TEXT(VALUE(RIGHT(dms_FRCP_y8,2)+1),"00"),VALUE(LEFT(dms_FRCP_y8,4)+1)) -> 2023-24 | J74: dms_FRCP_y9 | K74: =IF(dms_RPT="financial",VALUE(LEFT(dms_CRCP_yS,4)-1)&"-"&TEXT(VALUE(MID(dms_CRCP_yS,3,2)),"00"),VALUE(LEFT(dms_CRCP_yS,4)-1)) -> 2006-07 | L74: dms_CRCP_yR | M74: 9 | W74: number | AI74: 5 - STPIS Exclusion (3.3)(a)
B75: PTRM update 7 | E75: 10 | F75: dms_FRCP_y10 | G75: 10 | H75: CRCP_y10 | I75: =IF(dms_RPT="financial",VALUE(LEFT(dms_FRCP_y9,4)+1)&"-"&TEXT(VALUE(RIGHT(dms_FRCP_y9,2)+1),"00"),VALUE(LEFT(dms_FRCP_y9,4)+1)) -> 2024-25 | J75: dms_FRCP_y10 | K75: =IF(dms_RPT="financial",VALUE(LEFT(dms_CRCP_yR,4)-1)&"-"&TEXT(VALUE(MID(dms_CRCP_yR,3,2)),"00"),VALUE(LEFT(dms_CRCP_yR,4)-1)) -> 2005-06 | L75: dms_CRCP_yQ | M75: 10 | W75: % | AI75: 6 - STPIS Exclusion (3.3)(a)
B76: Regulatory proposal | E76: 11 | F76: dms_FRCP_y11 | G76: 11 | H76: CRCP_y11 | I76: =IF(dms_RPT="financial",VALUE(LEFT(dms_FRCP_y10,4)+1)&"-"&TEXT(VALUE(RIGHT(dms_FRCP_y10,2)+1),"00"),VALUE(LEFT(dms_FRCP_y10,4)+1)) -> 2025-26 | J76: dms_FRCP_y11 | K76: =IF(dms_RPT="financial",VALUE(LEFT(dms_CRCP_yQ,4)-1)&"-"&TEXT(VALUE(MID(dms_CRCP_yQ,3,2)),"00"),VALUE(LEFT(dms_CRCP_yQ,4)-1)) -> 2004-05 | L76: dms_CRCP_yP | M76: 11 | W76: number | AI76: 7 - STPIS Exclusion (3.3)(a)
B77: Reporting | E77: 12 | F77: dms_FRCP_y12 | G77: 12 | H77: CRCP_y12 | I77: =IF(dms_RPT="financial",VALUE(LEFT(dms_FRCP_y11,4)+1)&"-"&TEXT(VALUE(RIGHT(dms_FRCP_y11,2)+1),"00"),VALUE(LEFT(dms_FRCP_y11,4)+1)) -> 2026-27 | J77: dms_FRCP_y12 | K77: =IF(dms_RPT="financial",VALUE(LEFT(dms_CRCP_yP,4)-1)&"-"&TEXT(VALUE(MID(dms_CRCP_yP,3,2)),"00"),VALUE(LEFT(dms_CRCP_yP,4)-1)) -> 2003-04 | L77: dms_CRCP_yO | M77: 12 | W77: %
B78: Revised regulatory proposal | E78: 13 | F78: dms_FRCP_y13 | G78: 13 | H78: CRCP_y13 | I78: =IF(dms_RPT="financial",VALUE(LEFT(dms_FRCP_y12,4)+1)&"-"&TEXT(VALUE(RIGHT(dms_FRCP_y12,2)+1),"00"),VALUE(LEFT(dms_FRCP_y12,4)+1)) -> 2027-28 | J78: dms_FRCP_y13 | K78: =IF(dms_RPT="financial",VALUE(LEFT(dms_CRCP_yO,4)-1)&"-"&TEXT(VALUE(MID(dms_CRCP_yO,3,2)),"00"),VALUE(LEFT(dms_CRCP_yO,4)-1)) -> 2002-03 | L78: dms_CRCP_yN | M78: 13 | W78: number
E79: 14 | F79: dms_FRCP_y14 | G79: 14 | H79: CRCP_y14 | I79: =IF(dms_RPT="financial",VALUE(LEFT(dms_FRCP_y13,4)+1)&"-"&TEXT(VALUE(RIGHT(dms_FRCP_y13,2)+1),"00"),VALUE(LEFT(dms_FRCP_y13,4)+1)) -> 2028-29 | J79: dms_FRCP_y14 | K79: =IF(dms_RPT="financial",VALUE(LEFT(dms_CRCP_yN,4)-1)&"-"&TEXT(VALUE(MID(dms_CRCP_yN,3,2)),"00"),VALUE(LEFT(dms_CRCP_yN,4)-1)) -> 2001-02 | L79: dms_CRCP_yM | M79: 14 | W79: %
E80: 15 | F80: dms_FRCP_y15 | G80: 15 | H80: CRCP_y15 | I80: =IF(dms_RPT="financial",VALUE(LEFT(dms_FRCP_y14,4)+1)&"-"&TEXT(VALUE(RIGHT(dms_FRCP_y14,2)+1),"00"),VALUE(LEFT(dms_FRCP_y14,4)+1)) -> 2029-30 | J80: dms_FRCP_y15 | K80: =IF(dms_RPT="financial",VALUE(LEFT(dms_CRCP_yM,4)-1)&"-"&TEXT(VALUE(MID(dms_CRCP_yM,3,2)),"00"),VALUE(LEFT(dms_CRCP_yM,4)-1)) -> 2000-01 | L80: dms_CRCP_yL | M80: 15 | W80: number
E82: These are drop down lists for businesses to select the correct FRCP_y1 on the business and other details worksheet. This also populates the column headings in the worksheets
B83: dms_DataQuality_List | E83: dms_RCP_fyear_list | F83: dms_CRY_ListF | G83: dms_CRY_ListC | H83: dms_RCP_cyear_list | I83: dms_FRCP_fyear_list | J83: dms_FRCP_ListF | K83: dms_FRCP_ListC | L83: dms_FRCP_cyear_list
B84: Actual | E84: dms_fy1 | F84: 2006-07 | G84: 2007 | H84: dms_cy1 | I84: dms_frcp_fy1 | J84: 2016-17 | K84: 2017 | L84: dms_crcp_cy1
B85: Estimate | E85: dms_fy2 | F85: 2007-08 | G85: 2008 | H85: dms_cy2 | I85: dms_frcp_fy2 | J85: 2017-18 | K85: 2018 | L85: dms_crcp_cy2
B86: Consolidated | E86: dms_fy3 | F86: 2008-09 | G86: 2009 | H86: dms_cy3 | I86: dms_frcp_fy3 | J86: 2018-19 | K86: 2019 | L86: dms_crcp_cy3
B87: Recast | E87: dms_fy4 | F87: 2009-10 | G87: 2010 | H87: dms_cy4 | I87: dms_frcp_fy4 | J87: 2019-20 | K87: 2020 | L87: dms_crcp_cy4
B88: Public | E88: dms_fy5 | F88: 2010-11 | G88: 2011 | H88: dms_cy5 | I88: dms_frcp_fy5 | J88: 2020-21 | K88: 2021 | L88: dms_crcp_cy5
E89: dms_fy6 | F89: 2011-12 | G89: 2012 | H89: dms_cy6 | I89: dms_frcp_fy6 | J89: 2021-22 | K89: 2022 | L89: dms_crcp_cy6
E90: dms_fy7 | F90: 2012-13 | G90: 2013 | H90: dms_cy7 | I90: dms_frcp_fy7 | J90: 2022-23 | K90: 2023 | L90: dms_crcp_cy7
E91: dms_fy8 | F91: 2013-14 | G91: 2014 | H91: dms_cy8 | I91: dms_frcp_fy8 | J91: 2023-24 | K91: 2024 | L91: dms_crcp_cy8
E92: dms_fy9 | F92: 2014-15 | G92: 2015 | H92: dms_cy9 | I92: dms_frcp_fy9 | J92: 2024-25 | K92: 2025 | L92: dms_crcp_cy9
E93: dms_fy10 | F93: 2015-16 | G93: 2016 | H93: dms_cy10 | I93: dms_frcp_fy10 | J93: 2025-26 | K93: 2026 | L93: dms_crcp_cy10
E94: dms_fy11 | F94: 2016-17 | G94: 2017 | H94: dms_cy11 | I94: dms_frcp_fy11 | J94: 2026-27 | K94: 2027 | L94: dms_crcp_cy11
E95: dms_fy12 | F95: 2017-18 | G95: 2018 | H95: dms_cy12 | I95: dms_frcp_fy12 | J95: 2027-28 | K95: 2028 | L95: dms_crcp_cy12
E96: dms_fy13 | F96: 2018-19 | G96: 2019 | H96: dms_cy13 | I96: dms_frcp_fy13 | J96: 2028-29 | K96: 2029 | L96: dms_crcp_cy13
E97: dms_fy14 | F97: 2019-20 | G97: 2020 | H97: dms_cy14 | I97: dms_frcp_fy14 | J97: 2029-30 | K97: 2030 | L97: dms_crcp_cy14
E98: dms_fy15 | F98: 2020-21 | G98: 2021 | H98: dms_cy15 | I98: dms_frcp_fy15 | J98: 2030-31 | K98: 2031 | L98: dms_crcp_cy15

Sheet Instructions
B2: =CONCATENATE(dms_Segment," Network Service Provider") -> Distribution Network Service Provider
B3: Annual Reporting RIN Template
C4: =CONCATENATE("This template is to be used by ",dms_TradingName," to fulfil its reporting obligations to the AER.") -> This template is to be used by Endeavour Energy to fulfil its reporting obligations to the AER.
C5: INSTRUCTIONS
C6: Complete the Business & other details worksheet before entering data or values in any other worksheets. The Business & other details worksheet is linked to other worksheets within the workbook and automatically generates certain column headings and conditional formatting.
C8: Identifying CONFIDENTIAL INFORMATION: Please use the macro at the top of each worksheet to identify confidential information.
C9: -Do this by selecting the cell or cells that contain confidential information and then run the Mark selected cells as CONFIDENTIAL macro. This will format the cells a specific colour that is identified by the AER's database which in turn marks that information as confidential. -To reverse this, select the cell or cells and run the Return cells to NON-CONFIDENTIAL macro
C11: UNITS OF MEASURE All amounts are to be unrounded and reported in nominal terms on a one for one basis: that is 1000 is to be entered as '1000'. Applicable units of measure may be identified in the table column headings or row descriptors.
C13: COLOUR CODING OF INPUT / NON-INPUT CELLS:
D14: Yellow = Input cell (mandatory)
D15: Darker yellow = input cell (mandatory)
D16: Orange = input cell (if data available)
D17: Grey = Not applicable/No inputs required
D18: PLEASE DO NOT ENTER TEXT into cells that are to contain numeric data.
C21: WORKSHEET NAVIGATION Many tables in the worksheets have been "grouped" to allow for easy navigation. To ungroup or group data use the outline symbols in the left margin of excel (for Row groupings) or above the columns (for column groupings).
C23: RETURNING COMPLETED RESPONSES Please return four (4) files to the AER: 1. A confidential version which must contain a complete set of all responses with confidential information marked using the Mark selected cells CONFIDENTIAL macro and which has been completed using the locked template file provided by the AER. 2. An actual and an estimate version with confidential information marked using the Mark selected cells CONFIDENTIAL macro and which has been completed using the locked template file provided by the AER. 3. A public version with confidential information either removed completely or aggregated in some form together with writtten consent to disclose the public version of the response. Use the drop down box on the Business and other details worksheet to identify the file as either confidential ('consolidated') or public.
C25: SUBMITTING AMENDED DATA TO THE AER If an NSP wishes to correct data previously submitted to the AER it should resubmit that data using the original completed submission as the starting point. Please make any necessary changes to the data. Data that is not being amended should be left unchanged. NSPs must identify the reason for the amendments in the Amendment Reason box on the Business and other details worksheet. NSPs may provide further details regarding any amendments in the Amendments worksheet. .
C26: NSP may use Amended Data macro to highlight cells that contain amended data. NB: if data is also CONFIDENTIAL, re-apply the Confidentiality macro after applying the Amended macro
C27: Please resubmit two (2) files - a confidential version and a public version of the amended submission to the AER

Sheet Contents
B1: REGULATORY REPORTING STATEMENT
B2: =dms_TradingName -> Endeavour Energy
B3: =CONCATENATE("Benchmarking RIN response ",CRY) -> Benchmarking RIN response 2015-16
B5: CONTENTS
B12: 3. ECONOMIC BENCHMARKING

Sheet Business & other details
B1: REGULATORY REPORTING STATEMENT
B2: =dms_TradingName -> Endeavour Energy
B3: =CONCATENATE("Benchmarking RIN response ",CRY) -> Benchmarking RIN response 2015-16
B4: BUSINESS & OTHER DETAILS
B7: Instructions
B8: Complete the following business details regulatory template before entering data or values in any other regulatory template. This regulatory template is linked to other cells within the spreadsheet and automatically generates column headings.
B10: SUBMISSION PARTICULARS INPUT SHEETS
B12: ENTITY DETAILS
B14: Short name | C14: Endeavour Energy
B15: ACN / ABN | C15: =INDEX(dms_ABN_List,MATCH(dms_TradingName,dms_TradingName_List)) -> 59253130878
B18: Business address | C18: Address 1 | E18: =INDEX(dms_Addr1_List,MATCH(dms_TradingName,dms_TradingName_List)) -> 51 Huntingwood Drive
D19: Address 2 | E19: =IF(ISBLANK(INDEX(dms_Addr2_List,MATCH(dms_TradingName,dms_TradingName_List))),"",INDEX(dms_Addr2_List,MATCH(dms_TradingName,dms_TradingName_List))) -> 
C20: Suburb | E20: =INDEX(dms_Suburb_List,MATCH(dms_TradingName,dms_TradingName_List)) -> HUNTINGWOOD
D21: State | E21: =INDEX(dms_State_List,MATCH(dms_TradingName,dms_TradingName_List)) -> NSW | F21: p/code | G21: =INDEX(dms_PostCode_List,MATCH(dms_TradingName,dms_TradingName_List)) -> 2148
B23: Postal address | C23: Address 1 | E23: =INDEX(dms_PAddr1_List,MATCH(dms_TradingName,dms_TradingName_List)) -> PO Box 811
D24: Address 2 | E24: =IF(ISBLANK(INDEX(dms_PAddr2_List,MATCH(dms_TradingName,dms_TradingName_List))),"",INDEX(dms_PAddr2_List,MATCH(dms_TradingName,dms_TradingName_List))) -> 
C25: Suburb | E25: =INDEX(dms_PSuburb_List,MATCH(dms_TradingName,dms_TradingName_List)) -> SEVEN HILLS
D26: State | E26: =INDEX(dms_PState_List,MATCH(dms_TradingName,dms_TradingName_List)) -> NSW | F26: p/code | G26: 1730
B29: Contact name/s | C29: =INDEX(dms_ContactName1_List,MATCH(dms_TradingName,dms_TradingName_List)) -> Jon Hocking
B30: Contact phone/s | C30: =INDEX(dms_ContactPh1_List,MATCH(dms_TradingName,dms_TradingName_List)) -> 02 9853 4386 / 0407 348 156
B31: Contact email address/s | C31: =INDEX(dms_ContactEmail_List,MATCH(dms_TradingName,dms_TradingName_List)) -> Jon.Hocking@Endeavourenergy.com.au
B33: REGULATORY CONTROL PERIODS
B35: Forthcoming regulatory control period | C35: 2015-16 | D35: =dms_FRCP_y2 -> 2016-17 | E35: =dms_FRCP_y3 -> 2017-18 | F35: =dms_FRCP_y4 -> 2018-19 | G35: =dms_FRCP_y5 -> 2019-20 | H35: =dms_FRCP_y6 -> 2020-21 | I35: =IF(dms_RPT="financial",VALUE(LEFT(FRCP_y6,4)+1)&"-"&VALUE(MID(FRCP_y6,3,2)+2),VALUE(LEFT(FRCP_y6,4)+1)) -> 2021-22
B38: Current regulatory control period | C38: =dms_CRCP_FirstYear_Result -> 2010-11 | D38: =IF(dms_RPT="financial",VALUE(LEFT(CRCP_y1,4)+1)&"-"&TEXT(VALUE(RIGHT(CRCP_y1,2)+1),"0#"),VALUE(LEFT(CRCP_y1,4)+1)) -> 2011-12 | E38: =IF(dms_RPT="financial",VALUE(LEFT(CRCP_y2,4)+1)&"-"&TEXT(VALUE(RIGHT(CRCP_y2,2)+1),"0#"),VALUE(LEFT(CRCP_y2,4)+1)) -> 2012-13 | F38: =IF(dms_RPT="financial",VALUE(LEFT(CRCP_y3,4)+1)&"-"&TEXT(VALUE(RIGHT(CRCP_y3,2)+1),"0#"),VALUE(LEFT(CRCP_y3,4)+1)) -> 2013-14 | G38: =IF(dms_RPT="financial",VALUE(LEFT(CRCP_y4,4)+1)&"-"&TEXT(VALUE(RIGHT(CRCP_y4,2)+1),"0#"),VALUE(LEFT(CRCP_y4,4)+1)) -> 2014-15 | H38: =IF(dms_RPT="financial",VALUE(LEFT(CRCP_y5,4)+1)&"-"&TEXT(VALUE(RIGHT(CRCP_y5,2)+1),"0#"),VALUE(LEFT(CRCP_y5,4)+1)) -> 2015-16
B41: Previous regulatory control period | C41: =IF(dms_RPT="financial",VALUE(LEFT(PRCP_y2,4)-1)&"-"&TEXT(VALUE(MID(PRCP_y2,3,2)),"0#"),VALUE(LEFT(PRCP_y2,4)-1)) -> 2005-06 | D41: =IF(dms_RPT="financial",VALUE(LEFT(PRCP_y3,4)-1)&"-"&TEXT(VALUE(MID(PRCP_y3,3,2)),"0#"),VALUE(LEFT(PRCP_y3,4)-1)) -> 2006-07 | E41: =IF(dms_RPT="financial",VALUE(LEFT(PRCP_y4,4)-1)&"-"&TEXT(VALUE(MID(PRCP_y4,3,2)),"0#"),VALUE(LEFT(PRCP_y4,4)-1)) -> 2007-08 | F41: =IF(dms_RPT="financial",VALUE(LEFT(PRCP_y5,4)-1)&"-"&TEXT(VALUE(RIGHT(PRCP_y5,2)-1),"0#"),VALUE(LEFT(PRCP_y5,4)-1)) -> 2008-09 | G41: =IF(dms_RPT="financial",VALUE(LEFT(CRCP_y1,4)-1)&"-"&TEXT(VALUE(RIGHT(CRCP_y1,2)-1),"0#"),VALUE(LEFT(CRCP_y1,4)-1)) -> 2009-10
B44: Current regulatory year | C44: 2015-16 | D44: CRY
B50: Source | C50: Reporting | E50: Please select the correct submission type from the dropdown list.
B51: Data quality (actual, estimate, public, consolidated) | C51: Consolidated
B52: Amended RIN submission - amendment reason
B53: Submission Date | C53: 2016-10-13 | D53: dms_SubmissionDate | E53: Please enter date this file submitted to AER (dd/mm/yyyy)
B54: EBSS - First application of scheme in forthcoming period? | C54: No
A55: HIDE THESE ROWS | B55: Sector | C55: =INDEX(dms_Sector_List,MATCH(dms_TradingName,dms_TradingName_List)) -> Electricity | D55: dms_Sector | E55: =INDEX(dms_Sector_List,MATCH(dms_TradingName,dms_TradingName_List))
B56: Segment | C56: =INDEX(dms_Segment_List,MATCH(dms_TradingName,dms_TradingName_List)) -> Distribution | D56: dms_Segment | E56: =INDEX(dms_Segment_List,MATCH(dms_TradingName,dms_TradingName_List))
B57: Regulatory Year Ending | C57: =IF(dms_MultiYear_Flag=1,LEFT(dms_Specified_FinalYear,2)&RIGHT(dms_Specified_FinalYear,2),INDEX(dms_RYE_Formula_Result,MATCH(dms_Model,dms_Model_List))) -> 2016 | D57: dms_RYE | E57: =IF(dms_MultiYear_Flag=1,LEFT(dms_Specified_FinalYear,2)&RIGHT(dms_Specified_FinalYear,2),INDEX(dms_RYE_Formula_Result,MATCH(dms_Model,dms_Model_List)))
B58: Reporting Period Type | C58: =INDEX(dms_RPT_List,MATCH(dms_TradingName,dms_TradingName_List)) -> Financial | D58: dms_RPT | E58: =INDEX(dms_RPT_List,MATCH(dms_TradingName,dms_TradingName_List))
B59: Model or RIN Type | C59: EB | D59: dms_Model | E59: Drop down selection
B60: Security Classification | C60: Public | D60: dms_Classification | E60: Always Public
B61: Template - version no. | C61: 5 | D61: dms_TemplateNumber
B62: Dollar $ real month | C62: =INDEX(dms_RPTMonth_List,MATCH(dms_TradingName,dms_TradingName_List)) -> June | D62: dms_RPTMonth | E62: =INDEX(dms_RPTMonth_List,MATCH(dms_TradingName,dms_TradingName_List))
B63: Dollar $ real (the last month before the FRCP_y1) | C63: =IF(SUM(dms_SingleYear_Model)>0,CONCATENATE(dms_RPTMonth)&" "&VALUE((LEFT(CRY,2))&RIGHT(CRY,2)),CONCATENATE(dms_RPTMonth)&" "&VALUE((LEFT(dms_CRCP_FinalYear_Result,2))&RIGHT(dms_CRCP_FinalYear_Result,2))) -> June 2016 | D63: dms_DollarReal | E63: =IF(SUM(dms_SingleYear_Model)>0,CONCATENATE(dms_RPTMonth)&" "&VALUE((LEFT(CRY,2))&RIGHT(CRY,2)),CONCATENATE(dms_RPTMonth)&" "&VALUE((LEFT(dms_CRCP_FinalYear_Result,2))&RIGHT(dms_CRCP_FinalYear_Result,2)))
B64: Form of control | C64: =INDEX(dms_FormControl_List,MATCH(dms_TradingName,dms_TradingName_List)) -> Revenue cap | D64: dms_FormControl | E64: =INDEX(dms_FormControl_List,MATCH(dms_TradingName,dms_TradingName_List))
B65: RIN response - version no. | C65: 1 | D65: dms_RINversion
B66: Jurisdiction | C66: =INDEX(dms_JurisdictionList,MATCH(dms_TradingName,dms_TradingName_List)) -> NSW | D66: dms_Jurisdiction | E66: =INDEX(dms_JurisdictionList,MATCH(dms_TradingName,dms_TradingName_List))
B67: Backcast Multiyear EB, CA or ARR? | C67: 0 | D67: dms_MultiYear_Flag | E67: 1=y, 0-n
C68: 2013 | D68: dms_Specified_FinalYear | E68: The result here is returned to dms_CRCP_FinalYear_Result if dms_MultiYear_Flag is set to 1
B69: Single Year Model T/F | C69: =IF(dms_Model="EB",1,0) -> 1 | D69: dms_EB
C70: =IF(dms_Model="CA",1,0) -> 0 | D70: dms_CA | E70: =dms_SingleYear_Model
C71: =IF(dms_Model="ARR",1,0) -> 0 | D71: dms_ARR
B72: Single Year Final Year Reference | C72: CRY | D72: dms_SingleYear_FinalYear_Ref | E72: This is the reference for EB, CA & ARR RINs
B73: Single Year Final Year Result | C73: =INDIRECT(dms_SingleYear_FinalYear_Ref) -> 2015-16 | D73: dms_SingleYear_FinalYear_Result | E73: =INDIRECT(dms_SingleYear_FinalYear_Ref) | I73: Formula errors OK
B74: FRCP length in years | C74: =INDEX(dms_FRCPlength_List,MATCH(dms_TradingName,dms_TradingName_List)) -> 5 | D74: dms_FRCPlength_Num | E74: =INDEX(dms_FRCPlength_List,MATCH(dms_TradingName,dms_TradingName_List))
B75: Multi Year Final Year Reference | C75: =INDEX(dms_FinalYear_List,MATCH(dms_FRCPlength_Num,dms_FRCPlength_Num_List)) -> dms_FRCP_y5 | D75: dms_MultiYear_FinalYear_Ref | E75: =INDEX(dms_FinalYear_List,MATCH(dms_FRCPlength_Num,dms_FRCPlength_Num_List))
B76: Multi Year Final Year Result | C76: =IF(dms_MultiYear_Flag=0,INDIRECT(dms_MultiYear_FinalYear_Ref),dms_Specified_FinalYear) -> 2019-20 | D76: dms_MultiYear_FinalYear_Result | E76: =IF(dms_MultiYear_Flag=0,INDIRECT(dms_MultiYear_FinalYear_Ref),dms_Specified_FinalYear) | I76: Formula errors OK
B77: CRCP length in years | C77: =INDEX(dms_CRCPlength_List,MATCH(dms_TradingName,dms_TradingName_List)) -> 5 | D77: dms_CRCPlength_Num | E77: =INDEX(dms_CRCPlength_List,MATCH(dms_TradingName,dms_TradingName_List))
B78: CRCP Final Year Reference | C78: =INDEX(dms_CFinalYear_List,MATCH(dms_CRCPlength_Num,dms_CRCPlength_Num_List)) -> CRCP_y5 | D78: dms_CRCP_FinalYear_Ref | E78: =INDEX(dms_CFinalYear_List,MATCH(dms_CRCPlength_Num,dms_CRCPlength_Num_List))
B79: CRCP First Year Result | C79: =INDEX(dms_CRCP_years,MATCH(dms_CRCPlength_Num,dms_CRCP_index)) -> 2010-11 | D79: dms_CRCP_FirstYear_Result | E79: =INDEX(dms_CRCP_years,MATCH(dms_CRCPlength_Num,dms_CRCP_index))
B80: CRCP Final Year Result | C80: =IF(dms_MultiYear_Flag=0,(IF(SUM(dms_SingleYear_Model)>0,CRY,dms_CRCP_yZ)),dms_Specified_FinalYear) -> 2015-16 | D80: dms_CRCP_FinalYear_Result | E80: =IF(dms_MultiYear_Flag=0,(IF(SUM(dms_SingleYear_Model)>0,CRY,dms_CRCP_yZ)),dms_Specified_FinalYear)
B81: Table 6.6.3 - Public lighting repair - no. business days | C81: =INDEX(dms_663_List,MATCH(dms_TradingName,dms_TradingName_List)) -> 5 | D81: dms_663
B82: Distribution Determination Reference | C82: =INDEX(dms_DeterminationRef_List,MATCH(dms_TradingName,dms_TradingName_List)) -> 2014-19 Distribution Determination
B83: Backcast templates only - unit of measure | C83: $0s | D83: dms_Backcast_UOM | E83: If the cover sheet is for Backcast data ensure to apply dms_Backcast_UOM named range to this field. Otherwise, do not apply this named range.
B84: EB/CA Unit of Measure for Monetary Values | C84: $0s | D84: dms_dollar_nom_UOM | E84: If the cover sheet is attached to an EB files make sure this field is set
B86: discard this record? | C86: NO | D86: dms_DISCARD | E86: If record is to be discarded from DB set this flag to YES
B88: USES NAMED RANGES FLAG | C88: yes | D88: dms_Defined_Names_Used

Sheet 3.1 Revenue
B1: REGULATORY REPORTING STATEMENT
B2: =dms_TradingName -> Endeavour Energy
B3: =CONCATENATE("Benchmarking RIN response ",CRY) -> Benchmarking RIN response 2015-16
B4: 3.1 REVENUE
B6: There are THREE tables on this worksheet. Each table has been grouped for ease of navigation. See the Instructions sheet on how to group or ungroup tables.
B8: 3.1.1 - REVENUE GROUPING BY CHARGEABLE QUANTITY
C9: Standard control services | D9: Alternative control services
C10: REVENUE ($0's)
C11: =CRY -> 2015-16 | D11: =CRY -> 2015-16
A12: DREV0101 | B12: Revenue from Fixed Customer Charges | C12: 163872760.6 | D12: 0
A13: DREV0102 | B13: Revenue from Energy Delivery charges where time of use is not a determinant | C13: 486349945.4 | D13: 0
A14: DREV0103 | B14: Revenue from On–Peak Energy Delivery charges | C14: 27536822.66 | D14: 0
A15: DREV0104 | B15: Revenue from Shoulder period Energy Delivery Charges | C15: 12890776.87 | D15: 0
A16: DREV0105 | B16: Revenue from Off–Peak Energy Delivery charges | C16: 2725885.091 | D16: 0
A17: DREV0106 | B17: Revenue from controlled load customer charges | C17: 5530954.329 | D17: 0
A18: DREV0107 | B18: Revenue from unmetered supplies | C18: 8167594.475 | D18: 0
A19: DREV0108 | B19: Revenue from Contracted Maximum Demand charges | C19: 0 | D19: 0
A20: DREV0109 | B20: Revenue from Measured Maximum Demand charges | C20: 136992564.8 | D20: 0
A21: DREV0110 | B21: Revenue from metering charges | C21: 0 | D21: 16531292.72
A22: DREV0111 | B22: Revenue from connection charges | C22: 0 | D22: 0
A23: DREV0112 | B23: Revenue from public lighting charges | C23: 0 | D23: 19861248.11
A24: DREV0113 | B24: Revenue from other Sources | C24: 0 | D24: 30176630.18
A25: DREV01 | B25: Total revenue by chargeable quantity | C25: =SUM(C12:C24) -> 844067304.3 | D25: =SUM(D12:D24) -> 66569171.01
B28: 3.1.2 - REVENUE GROUPING BY CUSTOMER TYPE OR CLASS
C29: Standard control services | D29: Alternative control services
C30: REVENUE ($0's)
C31: =CRY -> 2015-16 | D31: =CRY -> 2015-16
A32: DREV0201 | B32: Revenue from residential Customers | C32: 479315294.2 | D32: 0
A33: DREV0202 | B33: Revenue from Non residential customers not on demand tariffs | C33: 149658504.9 | D33: 0
A34: DREV0203 | B34: Revenue from Non-residential low voltage demand tariff customers | C34: 148952485.3 | D34: 0
A35: DREV0204 | B35: Revenue from Non-residential high voltage demand tariff customers | C35: 57973425.4 | D35: 0
A36: DREV0205 | B36: Revenue from unmetered supplies | C36: 8167594.475 | D36: 0
A37: DREV0206 | B37: Revenue from Other Customers | C37: 0 | D37: 66569171.01
A38: DREV02 | B38: Total revenue by customer class | C38: =SUM(C32:C37) -> 844067304.3 | D38: =SUM(D32:D37) -> 66569171.01
B40: 3.1.3 - REVENUE (penalties) ALLOWED (deducted) THROUGH INCENTIVE SCHEMES
C41: Standard control services | D41: Alternative control services
C42: REVENUE ($0's)
C43: =CRY -> 2015-16 | D43: =CRY -> 2015-16
A44: DREV0301 | B44: EBSS | C44: 12574956.27 | D44: 0
A45: DREV0302 | B45: STPIS | C45: 0 | D45: 0
A46: DREV0303 | B46: F-Factor | C46: 0 | D46: 0
A47: DREV0304 | B47: S-Factor True up | C47: 0 | D47: 0
A48: DREV0305 | B48: Other | C48: 7235822.336 | D48: 0
A49: DREV03 | B49: Total revenue of incentive schemes | C49: =SUM(C44:C48) -> 19810778.6 | D49: =SUM(D44:D48) -> 0

Sheet 3.2 Operating expenditure
B1: REGULATORY REPORTING STATEMENT
B2: =dms_TradingName -> Endeavour Energy
B3: =CONCATENATE("Benchmarking RIN response ",CRY) -> Benchmarking RIN response 2015-16
B4: 3.2 OPERATING EXPENDITURE
B6: There are THREE tables on this worksheet. Each table has been grouped for ease of navigation. See the Instructions sheet on how to group or ungroup tables.
B8: Instructions
B9: =CONCATENATE("In table 3.2.1, please list each opex category reported in response to ",dms_TradingName, "'s annual reporting RIN and report opex for each category.") -> In table 3.2.1, please list each opex category reported in response to Endeavour Energy's annual reporting RIN and report opex for each category.
B12: 3.2.1 - OPEX CATEGORIES
B13: CURRENT OPEX CATEGORIES AND COST ALLOCATIONS
C14: Standard control services | D14: Alternative control services
C15: EXPENDITURE ($0's)
C16: =CRY -> 2015-16 | D16: =CRY -> 2015-16
A17: DOPEX0101 | B17: Vegetation management | C17: 50355048.15 | D17: 0
A18: DOPEX0102 | B18: Maintenance | C18: 57454880.01 | D18: 0
A19: DOPEX0103 | B19: Emergency response | C19: 25105750.42 | D19: 0
A20: DOPEX0104 | B20: Non-network | C20: 60393826.3 | D20: 0
A21: DOPEX0105 | B21: network overheads | C21: 62808455.98 | D21: 0
A22: DOPEX0106 | B22: corporate overheads | C22: 116096939.2 | D22: 0
A23: DOPEX0107 | B23: Balancing Item | C23: -60393826.3 | D23: 0
A24: DOPEX0108 | B24: Metering | D24: 17121241.62
A25: DOPEX0109 | B25: Public Lighting | D25: 10448159.25
A26: DOPEX0110 | B26: Ancillary network services | D26: 41167718.07
A27: DOPEX0111 | C27: 0 | D27: 0
A28: DOPEX0112 | C28: 0 | D28: 0
A29: DOPEX0113 | C29: 0 | D29: 0
A30: DOPEX0114 | C30: 0 | D30: 0
A31: DOPEX0115 | C31: 0 | D31: 0
A32: DOPEX0116 | C32: 0 | D32: 0
A33: DOPEX0117 | C33: 0 | D33: 0
A34: DOPEX0118 | C34: 0 | D34: 0
A35: DOPEX0119 | C35: 0 | D35: 0
A36: DOPEX0120 | C36: 0 | D36: 0
A37: DOPEX0121 | C37: 0 | D37: 0
A38: DOPEX0122 | C38: 0 | D38: 0
A39: DOPEX0123 | C39: 0 | D39: 0
A40: DOPEX0124 | C40: 0 | D40: 0
A41: DOPEX0125 | C41: 0 | D41: 0
A42: DOPEX0126 | C42: 0 | D42: 0
A43: DOPEX0127 | C43: 0 | D43: 0
A44: DOPEX0128 | C44: 0 | D44: 0
A45: DOPEX0129 | C45: 0 | D45: 0
A46: DOPEX0130 | C46: 0 | D46: 0
A47: DOPEX0131 | C47: 0 | D47: 0
A48: DOPEX0132 | C48: 0 | D48: 0
A49: DOPEX0133 | C49: 0 | D49: 0
A50: DOPEX0134 | C50: 0 | D50: 0
A51: DOPEX0135 | C51: 0 | D51: 0
A52: DOPEX0136 | C52: 0 | D52: 0
A53: DOPEX0137 | C53: 0 | D53: 0
A54: DOPEX0138 | C54: 0 | D54: 0
A55: DOPEX0139 | C55: 0 | D55: 0
A56: DOPEX0140 | C56: 0 | D56: 0
A57: DOPEX0141 | C57: 0 | D57: 0
A58: DOPEX0142 | C58: 0 | D58: 0
A59: DOPEX01 | B59: Total opex | C59: =SUM(C17:C58) -> 311821073.8 | D59: =SUM(D17:D58) -> 68737118.94
B63: 3.2.2 - OPEX CONSISTENCY
B64: CURRENT COST ALLOCATION APPROACH
C65: Standard control services | D65: Alternative control services
C66: EXPENDITURE ($0's)
C67: =CRY -> 2015-16 | D67: =CRY -> 2015-16
A68: DOPEX0201 | B68: Opex for network services | C68: 311821073.8 | D68: 0
A69: DOPEX0202 | B69: Opex for metering | C69: 0 | D69: 17121241.62
A70: DOPEX0203 | B70: Opex for connection services | C70: 0 | D70: 41167718.07
A71: DOPEX0204 | B71: Opex for public lighting | C71: 0 | D71: 10448159.25
A72: DOPEX0205 | B72: Opex for amounts payable for easement levy or similar direct charges on DNSP | C72: 0 | D72: 0
A73: DOPEX0206 | B73: Opex for transmission connection point planning | C73: 0 | D73: 0
B77: 3.2.4 - OPEX FOR HIGH VOLTAGE CUSTOMERS
C78: End user costs (not standard control services)
A79: DOPEX0401 | B79: Opex for high voltage customers | C79: 229512.576

Sheet 3.2.3 Provisions
B1: REGULATORY REPORTING STATEMENT
B2: =dms_TradingName -> Endeavour Energy
B3: =CONCATENATE("Benchmarking RIN response ",CRY) -> Benchmarking RIN response 2015-16
B4: 3.2 OPERATING EXPENDITURE
B6: The is ONE table on this worksheet. Each Provision has been grouped for ease of navigation. See the Instructions sheet on how to group and ungroup tables.
B8: Instructions
B9: =CONCATENATE("In table 3.2.3, please list each opex category reported in response to ",dms_TradingName, "'s annual reporting RIN and report opex for each category.") -> In table 3.2.3, please list each opex category reported in response to Endeavour Energy's annual reporting RIN and report opex for each category.
B11: 3.2.3 - PROVISIONS
C12: VALUE ($0's)
C13: =CRY -> 2015-16
A14: DOPEX03A | B14: Employee Entitlements
B15: Provisions are required to comply with Accounting Standards. A provision is recognised if, as a result of a past event, the Corporation has a present legal or constructive obligation that can be estimated reliably, and it is probable that an outflow of economic benefits will be required to settle the obligation. The Employee Benefits provision relates to amounts accruing to employees up to reporting date in respect of employee benefits including annual leave, maturing allowance, pre 93 sick leave and long service leave. Amounts provided for in relation to maturing allowance, pre 93 sick leave and long service leave have been based on an actuarial assessment and associated formulae provided for intervening periods between assessments. All other employee benefit amounts have been calculated at nominal amounts based on expected settlement rates.
A16: DOPEX0301A | B16: Opening balance (the carrying amount at the beginning of the period) | C16: 172252078
B17: Additional provisions made in the period, including increases to existing provisions
A18: DOPEX0302A | B18: Opex component | C18: 40117482.69
A19: DOPEX0303A | B19: Capex component | C19: 16365941.75
A20: DOPEX0304A | B20: Other component | C20: 0
B21: Amounts used (that is, incurred and charged against the provision) during the period
A22: DOPEX0305A | B22: Opex component | C22: -62734853.41
A23: DOPEX0306A | B23: Capex component | C23: -22242193.41
A24: DOPEX0307A | B24: Other component | C24: 0
B25: Unused amounts reversed during the period
A26: DOPEX0308A | B26: Opex component | C26: -1109492.315
A27: DOPEX0309A | B27: Capex component | C27: -427454.7383
A28: DOPEX0310A | B28: Other component | C28: 0
B29: The increase during the period in the discounted amount arising from the passage of time and the effect of any change in the discount rate
A30: DOPEX0311A | B30: Opex component | C30: 8041778.101
A31: DOPEX0312A | B31: Capex component | C31: 3441554.9
A32: DOPEX0313A | B32: Other component | C32: 0
A33: DOPEX0314A | B33: Closing balance (carrying amount at the end of the period) | C33: 153704841.3
A34: DOPEX03B | B34: Self Insurance (WC)
B35: Provisions are required to comply with Accounting Standards. A provision is recognised if, as a result of a past event, the Corporation has a present legal or constructive obligation that can be estimated reliably, and it is probable that an outflow of economic benefits will be required to settle the obligation. The Self Insurance provision relates to workers compensation and has been based on actuarial assessment outcomes.
A36: DOPEX0301B | B36: Opening balance (the carrying amount at the beginning of the period) | C36: 7241742.602
B37: Additional provisions made in the period, including increases to existing provisions
A38: DOPEX0302B | B38: Opex component | C38: 6399986.883
A39: DOPEX0303B | B39: Capex component | C39: 2738934.84
A40: DOPEX0304B | B40: Other component | C40: 0
B41: Amounts used (that is, incurred and charged against the provision) during the period
A42: DOPEX0305B | B42: Opex component | C42: -577709.8796
A43: DOPEX0306B | B43: Capex component | C43: -247236.4
A44: DOPEX0307B | B44: Other component | C44: 0
B45: Unused amounts reversed during the period
A46: DOPEX0308B | B46: Opex component | C46: 0
A47: DOPEX0309B | B47: Capex component | C47: 0
A48: DOPEX0310B | B48: Other component | C48: 0
B49: The increase during the period in the discounted amount arising from the passage of time and the effect of any change in the discount rate
A50: DOPEX0311B | B50: Opex component | C50: 0
A51: DOPEX0312B | B51: Capex component | C51: 0
A52: DOPEX0313B | B52: Other component | C52: 0
A53: DOPEX0314B | B53: Closing balance (carrying amount at the end of the period) | C53: 15555718
A54: DOPEX03C | B54: Defined Benefits Superannuation
B55: Provisions are required to comply with Accounting Standards. A provision is recognised if, as a result of a past event, the Corporation has a present legal or constructive obligation that can be estimated reliably, and it is probable that an outflow of economic benefits will be required to settle the obligation. The Defined Benefits Superannuation liability provision has been based on an EISS actuarial assessment.
A56: DOPEX0301C | B56: Opening balance (the carrying amount at the beginning of the period) | C56: 37235351.69
B57: Additional provisions made in the period, including increases to existing provisions
A58: DOPEX0302C | B58: Opex component | C58: 10487703.77
A59: DOPEX0303C | B59: Capex component | C59: 4488311.893
A60: DOPEX0304C | B60: Other component | C60: 0
B61: Amounts used (that is, incurred and charged against the provision) during the period
A62: DOPEX0305C | B62: Opex component | C62: -5481306.671
A63: DOPEX0306C | B63: Capex component | C63: -2345776.966
A64: DOPEX0307C | B64: Other component | C64: 0
B65: Unused amounts reversed during the period
A66: DOPEX0308C | B66: Opex component | C66: 0
A67: DOPEX0309C | B67: Capex component | C67: 0
A68: DOPEX0310C | B68: Other component | C68: 0
B69: The increase during the period in the discounted amount arising from the passage of time and the effect of any change in the discount rate
A70: DOPEX0311C | B70: Opex component | C70: 0
A71: DOPEX0312C | B71: Capex component | C71: 0
A72: DOPEX0313C | B72: Other component | C72: 30131704.92
A73: DOPEX0314C | B73: Closing balance (carrying amount at the end of the period) | C73: 74515988.64
A74: DOPEX03D | B74: Other
B75: Provisions are required to comply with Accounting Standards. A provision is recognised if, as a result of a past event, the Corporation has a present legal or constructive obligation that can be estimated reliably, and it is probable that an outflow of economic benefits will be required to settle the obligation. Other Provisions have not been detailed due to commercial and legal sensitivity.
A76: DOPEX0301D | B76: Opening balance (the carrying amount at the beginning of the period) | C76: 5927268.549
B77: Additional provisions made in the period, including increases to existing provisions
A78: DOPEX0302D | B78: Opex component | C78: 3966280.41
A79: DOPEX0303D | B79: Capex component | C79: 1351569.171
A80: DOPEX0304D | B80: Other component | C80: 0
B81: Amounts used (that is, incurred and charged against the provision) during the period
A82: DOPEX0305D | B82: Opex component | C82: -3678103.325
A83: DOPEX0306D | B83: Capex component | C83: -1520277.609
A84: DOPEX0307D | B84: Other component | C84: 0
B85: Unused amounts reversed during the period
A86: DOPEX0308D | B86: Opex component | C86: 0
A87: DOPEX0309D | B87: Capex component | C87: 0
A88: DOPEX0310D | B88: Other component | C88: 0
B89: The increase during the period in the discounted amount arising from the passage of time and the effect of any change in the discount rate
A90: DOPEX0311D | B90: Opex component | C90: 0
A91: DOPEX0312D | B91: Capex component | C91: 0
A92: DOPEX0313D | B92: Other component | C92: 0
A93: DOPEX0314D | B93: Closing balance (carrying amount at the end of the period) | C93: 6046737
A94: DOPEX03E | B94: Dividend
B95: Provisions are required to comply with Accounting Standards. A provision is recognised if, as a result of a past event, the Corporation has a present legal or constructive obligation that can be estimated reliably, and it is probable that an outflow of economic benefits will be required to settle the obligation. The Provision for Dividend represents amounts determined by the Directors and approved by the Shareholding Ministers, in accordance with the requirements of NSW Treasury Policy TPP 14-4 Financial Distribution Policy for Government Businesses.
A96: DOPEX0301E | B96: Opening balance (the carrying amount at the beginning of the period) | C96: 166533360
B97: Additional provisions made in the period, including increases to existing provisions
A98: DOPEX0302E | B98: Opex component | C98: 0
A99: DOPEX0303E | B99: Capex component | C99: 0
A100: DOPEX0304E | B100: Other component | C100: 114356152
B101: Amounts used (that is, incurred and charged against the provision) during the period
A102: DOPEX0305E | B102: Opex component | C102: 0
A103: DOPEX0306E | B103: Capex component | C103: 0
A104: DOPEX0307E | B104: Other component | C104: -166533360
B105: Unused amounts reversed during the period
A106: DOPEX0308E | B106: Opex component | C106: 0
A107: DOPEX0309E | B107: Capex component | C107: 0
A108: DOPEX0310E | B108: Other component | C108: 0
B109: The increase during the period in the discounted amount arising from the passage of time and the effect of any change in the discount rate
A110: DOPEX0311E | B110: Opex component | C110: 0
A111: DOPEX0312E | B111: Capex component | C111: 0
A112: DOPEX0313E | B112: Other component | C112: 0
A113: DOPEX0314E | B113: Closing balance (carrying amount at the end of the period) | C113: 114356152
A114: DOPEX03F | B114: Provision name
B115: Brief description of provision
A116: DOPEX0301F | B116: Opening balance (the carrying amount at the beginning of the period)
B117: Additional provisions made in the period, including increases to existing provisions
A118: DOPEX0302F | B118: Opex component
A119: DOPEX0303F | B119: Capex component
A120: DOPEX0304F | B120: Other component
B121: Amounts used (that is, incurred and charged against the provision) during the period
A122: DOPEX0305F | B122: Opex component
A123: DOPEX0306F | B123: Capex component
A124: DOPEX0307F | B124: Other component
B125: Unused amounts reversed during the period
A126: DOPEX0308F | B126: Opex component
A127: DOPEX0309F | B127: Capex component
A128: DOPEX0310F | B128: Other component
B129: The increase during the period in the discounted amount arising from the passage of time and the effect of any change in the discount rate
A130: DOPEX0311F | B130: Opex component
A131: DOPEX0312F | B131: Capex component
A132: DOPEX0313F | B132: Other component
A133: DOPEX0314F | B133: Closing balance (carrying amount at the end of the period)
A134: DOPEX03G | B134: Provision name
B135: Brief description of provision
A136: DOPEX0301G | B136: Opening balance (the carrying amount at the beginning of the period)
B137: Additional provisions made in the period, including increases to existing provisions
A138: DOPEX0302G | B138: Opex component
A139: DOPEX0303G | B139: Capex component
A140: DOPEX0304G | B140: Other component
B141: Amounts used (that is, incurred and charged against the provision) during the period
A142: DOPEX0305G | B142: Opex component
A143: DOPEX0306G | B143: Capex component
A144: DOPEX0307G | B144: Other component
B145: Unused amounts reversed during the period
A146: DOPEX0308G | B146: Opex component
A147: DOPEX0309G | B147: Capex component
A148: DOPEX0310G | B148: Other component
B149: The increase during the period in the discounted amount arising from the passage of time and the effect of any change in the discount rate
A150: DOPEX0311G | B150: Opex component
A151: DOPEX0312G | B151: Capex component
A152: DOPEX0313G | B152: Other component
A153: DOPEX0314G | B153: Closing balance (carrying amount at the end of the period)
A154: DOPEX03H | B154: Provision name
B155: Brief description of provision
A156: DOPEX0301H | B156: Opening balance (the carrying amount at the beginning of the period)
B157: Additional provisions made in the period, including increases to existing provisions
A158: DOPEX0302H | B158: Opex component
A159: DOPEX0303H | B159: Capex component
A160: DOPEX0304H | B160: Other component
B161: Amounts used (that is, incurred and charged against the provision) during the period
A162: DOPEX0305H | B162: Opex component
A163: DOPEX0306H | B163: Capex component
A164: DOPEX0307H | B164: Other component
B165: Unused amounts reversed during the period
A166: DOPEX0308H | B166: Opex component
A167: DOPEX0309H | B167: Capex component
A168: DOPEX0310H | B168: Other component
B169: The increase during the period in the discounted amount arising from the passage of time and the effect of any change in the discount rate
A170: DOPEX0311H | B170: Opex component
A171: DOPEX0312H | B171: Capex component
A172: DOPEX0313H | B172: Other component
A173: DOPEX0314H | B173: Closing balance (carrying amount at the end of the period)
A174: DOPEX03I | B174: Provision name
B175: Brief description of provision
A176: DOPEX0301I | B176: Opening balance (the carrying amount at the beginning of the period)
B177: Additional provisions made in the period, including increases to existing provisions
A178: DOPEX0302I | B178: Opex component
A179: DOPEX0303I | B179: Capex component
A180: DOPEX0304I | B180: Other component
B181: Amounts used (that is, incurred and charged against the provision) during the period
A182: DOPEX0305I | B182: Opex component
A183: DOPEX0306I | B183: Capex component
A184: DOPEX0307I | B184: Other component
B185: Unused amounts reversed during the period
A186: DOPEX0308I | B186: Opex component
A187: DOPEX0309I | B187: Capex component
A188: DOPEX0310I | B188: Other component
B189: The increase during the period in the discounted amount arising from the passage of time and the effect of any change in the discount rate
A190: DOPEX0311I | B190: Opex component
A191: DOPEX0312I | B191: Capex component
A192: DOPEX0313I | B192: Other component
A193: DOPEX0314I | B193: Closing balance (carrying amount at the end of the period)
A194: DOPEX03J | B194: Provision name
B195: Brief description of provision
A196: DOPEX0301J | B196: Opening balance (the carrying amount at the beginning of the period)
B197: Additional provisions made in the period, including increases to existing provisions
A198: DOPEX0302J | B198: Opex component
A199: DOPEX0303J | B199: Capex component
A200: DOPEX0304J | B200: Other component
B201: Amounts used (that is, incurred and charged against the provision) during the period
A202: DOPEX0305J | B202: Opex component
A203: DOPEX0306J | B203: Capex component
... 170 more rows

Sheet 3.3 Assets (RAB)
B1: REGULATORY REPORTING STATEMENT
B2: =dms_TradingName -> Endeavour Energy
B3: =CONCATENATE("Benchmarking RIN response ",CRY) -> Benchmarking RIN response 2015-16
B4: 3.3 ASSETS
B6: There are FOUR tables on this worksheet. Each table has been grouped (and sub-grouped) for ease of navigation. See the Instructions sheet on how to group or ungroup tables.
B8: 3.3.1 - REGULATORY ASSET BASE VALUES
C9: Network services | D9: Standard control services | E9: Alternative control services
C10: VALUE ($0's)
C11: =CRY -> 2015-16 | D11: =CRY -> 2015-16 | E11: 2015-16
B12: FOR TOTAL ASSET BASE
A13: DRAB0101 | B13: Opening value | C13: 5912221776 | D13: 5889009278 | E13: 23212497.97
A14: DRAB0102 | B14: Inflation addition | C14: 90105225.53 | D14: 89755095.94 | E14: 350129.5946
A15: DRAB0103 | B15: Straight line depreciation | C15: -219606575.6 | D15: -218750646.7 | E15: -855928.841
A16: DRAB0105 | B16: Actual additions (recognised in RAB) | C16: 260298834.1 | D16: 254850900.9 | E16: 5447933.209
A17: DRAB0106 | B17: Disposals | C17: -35831114.11 | D17: -35831114.11 | E17: 0
A18: DRAB0107 | B18: Closing value | C18: =SUM(C13:C17) -> 6007188146 | D18: =SUM(D13:D17) -> 5979033514 | E18: 28154631.93
B21: 3.3.2 - ASSET VALUE ROLL FORWARD
C22: Network services | D22: Standard control services | E22: Alternative control services
C23: VALUE ($0's)
C24: =CRY -> 2015-16 | D24: =CRY -> 2015-16 | E24: 2015-16
B25: For overhead network assets less than 33kV:
A26: DRAB0201 | B26: Opening value | C26: 777636616.8 | D26: 777636616.8 | E26: 0
A27: DRAB0202 | B27: Inflation addition | C27: 11852052.84 | D27: 11852052.84 | E27: 0
A28: DRAB0203 | B28: Straight line depreciation | C28: -26061118.72 | D28: -26061118.72 | E28: 0
A29: DRAB0205 | B29: Actual additions (recognised in RAB) | C29: 67000848.43 | D29: 67000848.43 | E29: 0
A30: DRAB0206 | B30: Disposals | C30: -84233.19398 | D30: -84233.19398 | E30: 0
A31: DRAB0207 | B31: Closing value | C31: =SUM(C26:C30) -> 830344166.1 | D31: =SUM(D26:D30) -> 830344166.1 | E31: =SUM(E26:E30) -> 0
B32: For underground network assets less than 33kV:
A33: DRAB0301 | B33: Opening value | C33: 1469506368 | D33: 1469506368 | E33: 0
A34: DRAB0302 | B34: Inflation addition | C34: 22396922.6 | D34: 22396922.6 | E34: 0
A35: DRAB0303 | B35: Straight line depreciation | C35: -50816031.06 | D35: -50816031.06 | E35: 0
A36: DRAB0305 | B36: Actual additions (recognised in RAB) | C36: 23891311.58 | D36: 23891311.58 | E36: 0
A37: DRAB0306 | B37: Disposals | C37: -7613.575502 | D37: -7613.575502 | E37: 0
A38: DRAB0307 | B38: Closing value | C38: =SUM(C33:C37) -> 1464970957 | D38: =SUM(D33:D37) -> 1464970957 | E38: =SUM(E33:E37) -> 0
B39: For distribution substations and transformers:
A40: DRAB0401 | B40: Opening value | C40: 525735875.4 | D40: 525735875.4 | E40: 0
A41: DRAB0402 | B41: Inflation addition | C41: 8012803.462 | D41: 8012803.462 | E41: 0
A42: DRAB0403 | B42: Straight line depreciation | C42: -23461721.45 | D42: -23461721.45 | E42: 0
A43: DRAB0405 | B43: Actual additions (recognised in RAB) | C43: 23007497.85 | D43: 23007497.85 | E43: 0
A44: DRAB0406 | B44: Disposals | C44: -387161.8968 | D44: -387161.8968 | E44: 0
A45: DRAB0407 | B45: Closing value | C45: =SUM(C40:C44) -> 532907293.3 | D45: =SUM(D40:D44) -> 532907293.3 | E45: =SUM(E40:E44) -> 0
B46: For overhead network assets 33kV and above:
A47: DRAB0501 | B47: Opening value | C47: 286288159.7 | D47: 286288159.7 | E47: 0
A48: DRAB0502 | B48: Inflation addition | C48: 4363352.14 | D48: 4363352.14 | E48: 0
A49: DRAB0503 | B49: Straight line depreciation | C49: -10554975.82 | D49: -10554975.82 | E49: 0
A50: DRAB0505 | B50: Actual additions (recognised in RAB) | C50: 24435163.45 | D50: 24435163.45 | E50: 0
A51: DRAB0506 | B51: Disposals | C51: 0 | D51: 0 | E51: 0
A52: DRAB0507 | B52: Closing value | C52: =SUM(C47:C51) -> 304531699.4 | D52: =SUM(D47:D51) -> 304531699.4 | E52: =SUM(E47:E51) -> 0
B53: For underground network assets 33kV and above:
A54: DRAB0601 | B54: Opening value | C54: 111777908.5 | D54: 111777908.5 | E54: 0
A55: DRAB0602 | B55: Inflation addition | C55: 1703620.495 | D55: 1703620.495 | E55: 0
A56: DRAB0603 | B56: Straight line depreciation | C56: -4718391.514 | D56: -4718391.514 | E56: 0
A57: DRAB0605 | B57: Actual additions (recognised in RAB) | C57: 1562514.803 | D57: 1562514.803 | E57: 0
A58: DRAB0606 | B58: Disposals | C58: 0 | D58: 0 | E58: 0
A59: DRAB0607 | B59: Closing value | C59: =SUM(C54:C58) -> 110325652.3 | D59: =SUM(D54:D58) -> 110325652.3 | E59: =SUM(E54:E58) -> 0
B60: Zone substations and transformers
A61: DRAB0701 | B61: Opening value | C61: 2313589263 | D61: 2313589263 | E61: 0
A62: DRAB0702 | B62: Inflation addition | C62: 35261691.13 | D62: 35261691.13 | E62: 0
A63: DRAB0703 | B63: Straight line depreciation | C63: -74954520.47 | D63: -74954520.47 | E63: 0
A64: DRAB0705 | B64: Actual additions (recognised in RAB) | C64: 89507584.38 | D64: 89507584.38 | E64: 0
A65: DRAB0706 | B65: Disposals | C65: -5803042.974 | D65: -5803042.974 | E65: 0
A66: DRAB0707 | B66: Closing value | C66: =SUM(C61:C65) -> 2357600975 | D66: =SUM(D61:D65) -> 2357600975 | E66: =SUM(E61:E65) -> 0
B67: For easements:
A68: DRAB0801 | B68: Opening value | C68: 14983159.12 | D68: 14983159.12 | E68: 0
A69: DRAB0802 | B69: Inflation addition | C69: 228360.1232 | D69: 228360.1232 | E69: 0
C70: 441054.5733 | D70: 441054.5733 | E70: 0
A71: DRAB0805 | B71: Actual additions (recognised in RAB) | C71: 0 | D71: 0 | E71: 0
A72: DRAB0806 | B72: Disposals
A73: DRAB0807 | B73: Closing value | C73: =SUM(C68:C72) -> 15652573.82 | D73: =SUM(D68:D72) -> 15652573.82 | E73: =SUM(E68:E72) -> 0
B74: For meters:
A75: DRAB0901 | B75: Opening value | C75: 45355697.31 | D75: 22721679.76 | E75: 22634017.55
A76: DRAB0902 | B76: Inflation addition | C76: 687707.8319 | D76: 346303.8434 | E76: 341403.9885
A77: DRAB0903 | B77: Straight line depreciation | C77: -528281.1956 | D77: 0 | E77: -528281.1956
A78: DRAB0905 | B78: Actual additions (recognised in RAB) | C78: 6010138.851 | D78: 562205.6414 | E78: 5447933.209
A79: DRAB0906 | B79: Disposals | C79: 0 | D79: 0 | E79: 0
A80: DRAB0907 | B80: Closing value | C80: =SUM(C75:C79) -> 51525262.8 | D80: =SUM(D75:D79) -> 23630189.25 | E80: =SUM(E75:E79) -> 27895073.55
B81: For “other” asset items with long lives:
A82: DRAB1001 | B82: Opening value | C82: 241666688 | D82: 241286124.7 | E82: 380563.3066
A83: DRAB1002 | B83: Inflation addition | C83: 3683211.024 | D83: 3677470.734 | E83: 5740.290272
A84: DRAB1003 | B84: Straight line depreciation | C84: -3817012.888 | D84: -3761241.203 | E84: -55771.68575
A85: DRAB1005 | B85: Actual additions (recognised in RAB) | C85: 4652315.707 | D85: 4652315.707 | E85: 0
A86: DRAB1006 | B86: Disposals | C86: -26556916.26 | D86: -26556916.26 | E86: 0
A87: DRAB1007 | B87: Closing value | C87: =SUM(C82:C86) -> 219628285.6 | D87: =SUM(D82:D86) -> 219297753.7 | E87: =SUM(E82:E86) -> 330531.9111
B88: For “other” asset items with short lives:
A89: DRAB1101 | B89: Opening value | C89: 125682041 | D89: 125484123.8 | E89: 197917.1125
A90: DRAB1102 | B90: Inflation addition | C90: 1915503.881 | D90: 1912518.565 | E90: 2985.315862
A91: DRAB1103 | B91: Straight line depreciation | C91: -24694522.46 | D91: -24422646.5 | E91: -271875.9597
A92: DRAB1105 | B92: Actual additions (recognised in RAB) | C92: 19790404.47 | D92: 19790404.47 | E92: 0
A93: DRAB1106 | B93: Disposals | C93: -2992146.214 | D93: -2992146.214 | E93: 0
A94: DRAB1107 | B94: Closing value | C94: =SUM(C89:C93) -> 119701280.6 | D94: =SUM(D89:D93) -> 119772254.2 | E94: =SUM(E89:E93) -> -70973.53128
B98: 3.3.3 - TOTAL DISAGGREGATED RAB ASSET VALUES
C99: Network services | D99: Standard control services | E99: Alternative control services
C100: VALUE ($0's)
C101: =CRY -> 2015-16 | D101: =CRY -> 2015-16 | E101: 2015-16
A102: DRAB1201 | B102: Overhead distribution assets (wires and poles) | C102: 803990391.4 | D102: 803990391.4 | E102: 0
A103: DRAB1202 | B103: Underground distribution assets (cables, ducts etc) | C103: 1467238662 | D103: 1467238662 | E103: 0
A104: DRAB1203 | B104: Distribution substations including transformers | C104: 529321584.4 | D104: 529321584.4 | E104: 0
A105: DRAB1204 | B105: Overhead assets 33kV and above (wires and towers / poles etc) | C105: 295409929.5 | D105: 295409929.5 | E105: 0
A106: DRAB1205 | B106: Underground assets 33kV and above (cables, ducts etc) | C106: 111051780.4 | D106: 111051780.4 | E106: 0
A107: DRAB1206 | B107: Zone substations | C107: 2335595119 | D107: 2335595119 | E107: 0
A108: DRAB1207 | B108: Easements | C108: 15317866.47 | D108: 15317866.47 | E108: 0
A109: DRAB1208 | B109: Meters | C109: 48440480.06 | D109: 23175934.5 | E109: 25264545.55
A110: DRAB1209 | B110: Other assets with long lives (please specify) | C110: 230647486.8 | D110: 230291939.2 | E110: 355547.6089
A111: DRAB1210 | B111: Other assets with short lives (please specify) | C111: 122691660.8 | D111: 122628189 | E111: 63471.79063
A112: DRAB13 | B112: Value of Capital Contributions or Contributed Assets (included in the above) | C112: 125942611.5 | D112: 123765221.3 | E112: 2177390.14
B115: 3.3.4 - ASSET LIVES
C116: Network services | D116: Standard control services | E116: Alternative control services
C117: Service Life (Years)
C118: =CRY -> 2015-16 | D118: =CRY -> 2015-16 | E118: 2015-16
B119: ESTIMATED SERVICE LIFE OF NEW ASSETS
A120: DRAB1401 | B120: Overhead network assets less than 33kV (wires and poles) | C120: 53.19990879 | D120: 53.19990879 | E120: 0
A121: DRAB1402 | B121: Underground network assets less than 33kV (cables) | C121: 60 | D121: 60 | E121: 0
A122: DRAB1403 | B122: Distribution substations including transformers | C122: 41.62342553 | D122: 41.62342553 | E122: 0
A123: DRAB1404 | B123: Overhead network assets 33kV and above (wires and towers / poles etc) | C123: 56.33714003 | D123: 56.33714003 | E123: 0
A124: DRAB1405 | B124: Underground network assets 33kV and above(cables, ducts etc) | C124: 45 | D124: 45 | E124: 0
A125: DRAB1406 | B125: Zone substations and transformers | C125: 45.28807847 | D125: 45.28807847 | E125: 0
A126: DRAB1407 | B126: Meters | C126: 25 | D126: 25 | E126: 25
A127: DRAB1408 | B127: “Other” assets with long lives | C127: 46.37752864 | D127: 46.37752864 | E127: 46.37752864
A128: DRAB1409 | B128: “Other” assets with short lives | C128: 7.228562065 | D128: 7.228562065 | E128: 7.228562065
B129: ESTIMATED RESIDUAL SERVICE LIFE
A130: DRAB1501 | B130: Overhead network assets less than 33kV (wires and poles) | C130: 41.02292248 | D130: 41.02292248 | E130: 0
A131: DRAB1502 | B131: Underground network assets less than 33kV (cables) | C131: 49.62871179 | D131: 49.62871179 | E131: 0
A132: DRAB1503 | B132: Distribution substations including transformers | C132: 33.51722213 | D132: 33.51722213 | E132: 0
A133: DRAB1504 | B133: Overhead network assets 33kV and above (wires and towers / poles etc) | C133: 46.72208667 | D133: 46.72208667 | E133: 0
A134: DRAB1505 | B134: Underground network assets 33kV and above (cables, ducts etc) | C134: 34.58566658 | D134: 34.58566658 | E134: 0
A135: DRAB1506 | B135: Zone substations and transformers | C135: 39.65847453 | D135: 39.65847453 | E135: 0
A136: DRAB1507 | B136: Meters | C136: 16.00991803 | D136: 16.00991803 | E136: 16.00991803
A137: DRAB1508 | B137: “Other” assets with long lives | C137: 36.89657806 | D137: 36.89657806 | E137: 36.89657806
A138: DRAB1509 | B138: “Other” assets with short lives | C138: 3.880277168 | D138: 3.880277168 | E138: 3.880277168

Sheet 3.4 Operational data
B1: REGULATORY REPORTING STATEMENT
B2: =dms_TradingName -> Endeavour Energy
B3: =CONCATENATE("Benchmarking RIN response ",CRY) -> Benchmarking RIN response 2015-16
B4: 3.4 OPERATIONAL DATA
B6: There are THREE tables on this worksheet. Each table has been grouped for ease of navigation. See the Instructions sheet on how to group or ungroup tables.
B8: 3.4.1 - ENERGY DELIVERY
D9: Standard control services
D10: VOLUME (0's)
C11: Units | D11: =CRY -> 2015-16
A12: DOPED01 | B12: Total energy delivered | C12: GWh | D12: 16645.29694
B15: 3.4.1.1 - Energy grouping - delivery by chargeable quantity
A16: DOPED0201 | B16: Energy Delivery where time of use is not a determinant | C16: GWh | D16: 6651.992542
A17: DOPED0202 | B17: Energy Delivery at On-peak times | C17: GWh | D17: 2089.99332
A18: DOPED0203 | B18: Energy Delivery at Shoulder times | C18: GWh | D18: 2361.09818
A19: DOPED0204 | B19: Energy Delivery at Off-peak times | C19: GWh | D19: 4526.349404
A20: DOPED0205 | B20: Controlled load energy deliveries | C20: GWh | D20: 876.6706182
A21: DOPED0206 | B21: Energy Delivery to unmetered supplies | C21: GWh | D21: 139.1928804
B23: 3.4.1.2 - Energy - received from TNSP and other DNSPs by time of receipt
A24: DOPED0301 | B24: Energy into DNSP network at On-peak times | C24: GWh | D24: 3145.732513
A25: DOPED0302 | B25: Energy into DNSP network at Shoulder times | C25: GWh | D25: 3387.830028
A26: DOPED0303 | B26: Energy into DNSP network at Off-peak times | C26: GWh | D26: 7193.381081
A27: DOPED0304 | B27: Energy received from TNSP and other DNSPs not included in the above categories | C27: GWh | D27: 0
B29: 3.4.1.3 - Energy - received into DNSP system from embedded generation by time of receipt
A30: DOPED0401 | B30: Energy into DNSP network at On-peak times from non-residential embedded generation | C30: GWh | D30: 881.2041259
A31: DOPED0402 | B31: Energy into DNSP network at Shoulder times from non-residential embedded generation | C31: GWh | D31: 933.9975732
A32: DOPED0403 | B32: Energy into DNSP network at Off-peak times from non-residential embedded generation | C32: GWh | D32: 1450.797501
A33: DOPED0404 | B33: Energy received from embedded generation not included in above categories from non-residential embedded generation | C33: GWh | D33: 0
A34: DOPED0405 | B34: Energy into DNSP network at On-peak times from residential embedded generation | C34: GWh | D34: 0
A35: DOPED0406 | B35: Energy into DNSP network at Shoulder times from residential embedded generation | C35: GWh | D35: 0
A36: DOPED0407 | B36: Energy into DNSP network at Off-peak times from residential embedded generation | C36: GWh | D36: 0
A37: DOPED0408 | B37: Energy received from embedded generation not included in above categories from residential embedded generation | C37: GWh | D37: 345.908137
B39: 3.4.1.4 - Energy grouping - customer type or class
A40: DOPED0501 | B40: Residential customers energy deliveries | C40: GWh | D40: 5828.492079
A41: DOPED0502 | B41: Non residential customers not on demand tariffs energy deliveries | C41: GWh | D41: 2132.55962
A42: DOPED0503 | B42: Non-residential low voltage demand tariff customers energy deliveries | C42: GWh | D42: 3745.466704
A43: DOPED0504 | B43: Non-residential high voltage demand tariff customers energy deliveries | C43: GWh | D43: 4938.778543
A44: DOPED0505 | B44: Other Customer Class Energy Deliveries | C44: GWh | D44: 0
B47: 3.4.2 - CUSTOMER NUMBERS
D48: Standard control services
D49: VOLUME (0's)
D50: =CRY -> 2015-16
B51: 3.4.2.1 - Distribution customer numbers by customer type or class
A52: DOPCN0101 | B52: Residential customer numbers | D52: 859444.5
A53: DOPCN0102 | B53: Non residential customers not on demand tariff customer numbers | D53: 78212
A54: DOPCN0103 | B54: Low voltage demand tariff customer numbers | D54: 4658.5
A55: DOPCN0104 | B55: High voltage demand tariff customer numbers | D55: 348.5
A56: DOPCN0105 | B56: Unmetered Customer Numbers | D56: 6091.5
A57: DOPCN0106 | B57: Other Customer Numbers | D57: 19599.5
A58: DOPCN01 | B58: Total customer numbers | D58: =SUM(D52:D57) -> 968354.5
B60: 3.4.2.2 - Distribution customer numbers by location on the network
A61: DOPCN0201 | B61: Customers on CBD network | D61: 0
A62: DOPCN0202 | B62: Customers on Urban network | D62: 811991.9515
A63: DOPCN0203 | B63: Customers on Short rural network | D63: 156055.7851
A64: DOPCN0204 | B64: Customers on Long rural network | D64: 306.7634309
A65: DOPCN02 | B65: Total customer numbers | D65: =SUM(D61:D64) -> 968354.5
B67: 3.4.2.3 - Distribution customer numbers by TasNetworks (D) feeder categories (TasNetworks (D) only)
B68: Critical Infrastructure | D68: 0
B69: High Density Commercial | D69: 0
B70: Urban | D70: 0
B71: High Density Rural | D71: 0
B72: Low Density Rural | D72: 0
B73: Total customer numbers | D73: =SUM(D68:D72) -> 0
B75: 3.4.2.4 - Unmetered Supply TasNetworks (D) only)
A76: DOPCN0301 | B76: Number of unmetered connections reported in customer numbers in the economic benchmarking RIN | D76: 6091.5
A77: DOPCN0302 | B77: Unmetered connections not reported in customer numbers in the economic benchmarking RIN | D77: 1300.5
A78: DOPCN0303 | B78: Total unmetered connections | D78: 7392
B81: 3.4.3 - SYSTEM DEMAND
D82: Standard control services
D83: VOLUME (0's)
C84: Units | D84: =CRY -> 2015-16
B85: 3.4.3.1 - Annual system maximum demand characteristics at the zone substation level – MW measure
A86: DOPSD0101 | B86: Non-coincident Summated Raw System Annual Maximum Demand | C86: MW | D86: 4271.799
A87: DOPSD0102 | B87: Non–coincident Summated Weather Adjusted System Annual Maximum Demand 10% POE | C87: MW | D87: 4330.0934
A88: DOPSD0103 | B88: Non–coincident Summated Weather Adjusted System Annual Maximum Demand 50% POE | C88: MW | D88: 4063.2987
A89: DOPSD0104 | B89: Coincident Raw System Annual Maximum Demand | C89: MW | D89: 3784.562481
A90: DOPSD0105 | B90: Coincident Weather Adjusted System Annual Maximum Demand 10% POE | C90: MW | D90: 3758.3
A91: DOPSD0106 | B91: Coincident Weather Adjusted System Annual Maximum Demand 50% POE | C91: MW | D91: 3481.6
B93: 3.4.3.2 - Annual system maximum demand characteristics at the transmission connection point – MW measure
A94: DOPSD0107 | B94: Non-coincident Summated Raw System Annual Maximum Demand | C94: MW | D94: 4096.747073
A95: DOPSD0108 | B95: Non–coincident Summated Weather Adjusted System Annual Maximum Demand 10% POE | C95: MW | D95: 4195.528
A96: DOPSD0109 | B96: Non–coincident Summated Weather Adjusted System Annual Maximum Demand 50% POE | C96: MW | D96: 3903.388
A97: DOPSD0110 | B97: Coincident Raw System Annual Maximum Demand | C97: MW | D97: 3854.52
A98: DOPSD0111 | B98: Coincident Weather Adjusted System Annual Maximum Demand 10% POE | C98: MW | D98: 3846.44
A99: DOPSD0112 | B99: Coincident Weather Adjusted System Annual Maximum Demand 50% POE | C99: MW | D99: 3566.96
B101: 3.4.3.3 - Annual system maximum demand characteristics at the zone substation level – MVA measure
A102: DOPSD0201 | B102: Non–coincident Summated Raw System Annual Maximum Demand | C102: MVA | D102: 4297.100509
A103: DOPSD0202 | B103: Non–coincident Summated Weather Adjusted System Annual Maximum Demand 10% POE | C103: MVA | D103: 4510.526798
A104: DOPSD0203 | B104: Non–coincident Summated Weather Adjusted System Annual Maximum Demand 50% POE | C104: MVA | D104: 4235.290327
A105: DOPSD0204 | B105: Coincident Raw System Annual Maximum Demand | C105: MVA | D105: 3806.978128
A106: DOPSD0205 | B106: Coincident Weather Adjusted System Annual Maximum Demand 10% POE | C106: MVA | D106: 3780.560097
A107: DOPSD0206 | B107: Coincident Weather Adjusted System Annual Maximum Demand 50% POE | C107: MVA | D107: 3502.221226
B109: 3.4.3.4 - Annual system maximum demand characteristics at the transmission connection point – MVA measure
A110: DOPSD0207 | B110: Non–coincident Summated Raw System Annual Maximum Demand | C110: MVA | D110: 4157.838292
A111: DOPSD0208 | B111: Non–coincident Summated Weather Adjusted System Annual Maximum Demand 10% POE | C111: MVA | D111: 4258.72873
A112: DOPSD0209 | B112: Non–coincident Summated Weather Adjusted System Annual Maximum Demand 50% POE | C112: MVA | D112: 3961.595824
A113: DOPSD0210 | B113: Coincident Raw System Annual Maximum Demand | C113: MVA | D113: 3877.35
A114: DOPSD0211 | B114: Coincident Weather Adjusted System Annual Maximum Demand 10% POE | C114: MVA | D114: 3869.222143
A115: DOPSD0212 | B115: Coincident Weather Adjusted System Annual Maximum Demand 50% POE | C115: MVA | D115: 3588.086806
B117: 3.4.3.5 - Power factor conversion between MVA and MW
A118: DOPSD0301 | B118: Average overall network power factor conversion between MVA and MW | C118: Factor | D118: 0.994
A119: DOPSD0302 | B119: Average power factor conversion for low voltage distribution lines | C119: Factor | D119: 0.932
A120: DOPSD0303 | B120: Average power factor conversion for 3.3 kV lines | C120: Factor | D120: 0
A121: DOPSD0304 | B121: Average power factor conversion for 6.6 kV lines | C121: Factor | D121: 0
A122: DOPSD0305 | B122: Average power factor conversion for 7.6 kV lines | C122: Factor | D122: 0
A123: DOPSD0306 | B123: Average power factor conversion for 11 kV lines | C123: Factor | D123: 0.932
A124: DOPSD0307 | B124: Average power factor conversion for SWER lines | C124: Factor | D124: 0.9
A125: DOPSD0308 | B125: Average power factor conversion for 22 kV lines | C125: Factor | D125: 0.929
A126: DOPSD0309 | B126: Average power factor conversion for 33 kV lines | C126: Factor | D126: 0.973
A127: DOPSD0310 | B127: Average power factor conversion for 44 kV lines | C127: Factor | D127: 0
A128: DOPSD0311 | B128: Average power factor conversion for 66 kV lines | C128: Factor | D128: 0.987
A129: DOPSD0312 | B129: Average power factor conversion for 110 kV lines | C129: Factor | D129: 0
A130: DOPSD0313 | B130: Average power factor conversion for 132 kV lines | C130: Factor | D130: 0.986
A131: DOPSD0314 | B131: Average power factor conversion for 220 kV lines | C131: Factor | D131: 0
B133: 3.4.3.6 - Demand supplied (for customers charged on this basis) – MW measure
A134: DOPSD0401 | B134: Summated Chargeable Contracted Maximum Demand | C134: MW | D134: 0
A135: DOPSD0402 | B135: Summated Chargeable Measured Maximum Demand | C135: MW | D135: 3118.64272
B137: 3.4.3.7 - Demand supplied (for customers charged on this basis) – MVA measure
A138: DOPSD0403 | B138: Summated Chargeable Contracted Maximum Demand | C138: MVA | D138: 0
A139: DOPSD0404 | B139: Summated Chargeable Measured Maximum Demand | C139: MVA | D139: 18362.20952

Sheet 3.5 Physical assets
B1: REGULATORY REPORTING STATEMENT
B2: =dms_TradingName -> Endeavour Energy
B3: =CONCATENATE("Benchmarking RIN response ",CRY) -> Benchmarking RIN response 2015-16
B4: 3.5 PHYSICAL ASSETS
B6: There are THREE tables on this worksheet. Each table has been grouped (and sub-grouped) for ease of navigation. See the Instructions sheet on how to group or ungroup tables.
B8: 3.5.1 - NETWORK CAPACITIES
C9: VOLUME in KM's (0's)
C10: =CRY -> 2015-16
B11: Circuit length (kilometers)
B12: 3.5.1.1 - Overhead network length of circuit at each voltage
A13: DPA0101 | B13: Overhead low voltage distribution | C13: 8814.915
A14: DPA0102 | B14: Overhead 2.2 kV | C14: 0
A15: DPA0103 | B15: Overhead 6.6kv | C15: 0
A16: DPA0104 | B16: Overhead 7.6 kV | C16: 0
A17: DPA0105 | B17: Overhead 11 kV | C17: 9224.341
A18: DPA0106 | B18: Overhead SWER | C18: 481.412
A19: DPA0107 | B19: Overhead 22 kV | C19: 1550.092
A20: DPA0108 | B20: Overhead 33 kV | C20: 1467.396
A21: DPA0109 | B21: Overhead 44 kV | C21: 0
A22: DPA0110 | B22: Overhead 66 kV | C22: 535.71
A23: DPA0111 | B23: Overhead 110kV | C23: 0
A24: DPA0112 | B24: Overhead 132 kV | C24: 1220.893
A25: DPA0113 | B25: Overhead 220kV | C25: 0
A26: DPA0114 | B26: Other | C26: 0
A27: DPA01 | B27: Total overhead circuit km | C27: =SUM(C9:C26) -> 23294.759
B28: 3.5.1.2 - Underground network circuit length at each voltage
A29: DPA0201 | B29: Underground low voltage distribution | C29: 8174.759
A30: DPA0202 | B30: Underground 5 kV | C30: 0
A31: DPA0203 | B31: Underground 6.6 Kv | C31: 0
A32: DPA0204 | B32: Underground 7.6 kV | C32: 0
A33: DPA0205 | B33: Underground 11 kV | C33: 4267.627
A34: DPA0206 | B34: Underground SWER | C34: 0
A35: DPA0207 | B35: Underground 22 kV | C35: 377.84
A36: DPA0208 | B36: Underground 33 kV | C36: 190.461
A37: DPA0209 | B37: Underground 66 kV | C37: 32.102
A38: DPA0210 | B38: Underground 110 kV | C38: 0
A39: DPA0211 | B39: Underground 132 kV | C39: 130.313
A40: DPA0212 | B40: Other | C40: 0
A41: DPA02 | B41: Total underground circuit km | C41: =SUM(C29:C40) -> 13173.102
C42: VOLUME in MVA (0's)
B43: Circuit Capacity (MVA) | C43: =CRY -> 2015-16
B44: 3.5.1.3 - Estimated overhead network weighted average MVA capacity by voltage class
A45: DPA0301 | B45: Overhead low voltage distribution | C45: 0.16
A46: DPA0302 | B46: Overhead 6.6 kV | C46: -
A47: DPA0303 | B47: Overhead 7.6 kV | C47: -
A48: DPA0304 | B48: Overhead 11 kV | C48: 4.098
A49: DPA0305 | B49: Overhead SWER | C49: 0.763
A50: DPA0306 | B50: Overhead 22 kV | C50: 8.78
A51: DPA0307 | B51: Overhead 33 kV | C51: 30.13
A52: DPA0308 | B52: Overhead 44 kV | C52: -
A53: DPA0309 | B53: Overhead 66 kV | C53: 42.235
A54: DPA0310 | B54: Overhead 110 kV | C54: -
A55: DPA0311 | B55: Overhead 132 kV | C55: 208.626
A56: DPA0312 | B56: Overhead 220 kV | C56: -
A57: DPA0313 | B57: Other | C57: -
B58: 3.5.1.4 - Estimated underground network weighted average MVA capacity by voltage class
A59: DPA0401 | B59: Underground low voltage distribution | C59: 0.205
A60: DPA0402 | B60: Underground 5 kV | C60: -
A61: DPA0403 | B61: Underground 6.6 kV | C61: -
A62: DPA0404 | B62: Underground 7.6 kV | C62: -
A63: DPA0405 | B63: Underground 11 kV | C63: 4.617
A64: DPA0406 | B64: Underground SWER | C64: -
A65: DPA0407 | B65: Underground 12.7 kV | C65: -
A66: DPA0408 | B66: Underground 22 kV | C66: 9.601
A67: DPA0409 | B67: Underground 33 kV | C67: 44.223
A68: DPA0410 | B68: Underground 66 kV | C68: 79.823
A69: DPA0411 | B69: Underground 110 kV | C69: -
A70: DPA0412 | B70: Underground 132 kV | C70: 154.013
A71: DPA0413 | B71: Other | C71: -
B75: 3.5.2 - TRANSFORMER CAPACITIES
C76: VOLUME in MVA (0's)
C77: =CRY -> 2015-16
B78: 3.5.2.1 - Distribution transformer total installed capacity
A79: DPA0501 | B79: Distribution transformer capacity owned by utility | C79: 9970.356
A80: DPA0502 | B80: Distribution transformer capacity owned by High Voltage Customers | C80: 71.994
A81: DPA0503 | B81: Cold spare capacity included in DPA0501 | C81: 0
B82: 3.5.2.2 - Zone substation transformer capacity
A83: DPA0601 | B83: Total installed capacity for first step transformation where there are two steps to reach distribution voltage | C83: 5420
A84: DPA0602 | B84: Total installed capacity for second step transformation where there are two steps to reach distribution voltage | C84: 7246
A85: DPA0603 | B85: Total zone substation transformer capacity where there is only a single step transformation to reach distribution voltage | C85: 2540.5
A86: DPA0604 | B86: Total zone substation transformer capacity | C86: 15206.5
A87: DPA0605 | B87: Cold spare capacity of zone substation transformers included in DPA0604 | C87: 0
B88: 3.5.2.3 - Distribution - other transformer capacity
B89: Distribution other - transformer capacity owned by utility | C89: 0
B93: 3.5.3 - PUBLIC LIGHTING
C94: VOLUME (0's)
C95: =CRY -> 2015-16
A96: DPA0701 | B96: Public lighting luminaires | C96: 202841
A97: DPA0702 | B97: Public lighting poles | C97: 226
A98: DPA0703 | B98: Public lighting columns | C98: 98628

Sheet 3.6 Quality of service
B1: REGULATORY REPORTING STATEMENT
B2: =dms_TradingName -> Endeavour Energy
B3: =CONCATENATE("Benchmarking RIN response ",CRY) -> Benchmarking RIN response 2015-16
B4: 3.6 QUALITY OF SERVICE DATA
B7: 3.6.1 - RELIABILITY
D8: (0's)
C9: Units | D9: =CRY -> 2015-16
B10: INCLUSIVE OF MEDs
A11: DQS0101 | B11: Whole of network unplanned SAIDI | C11: minutes/customer | D11: 149.6810109
A12: DQS0102 | B12: Whole of network unplanned SAIDI excluding excluded outages | C12: minutes/customer | D12: 148.1972717
A13: DQS0103 | B13: Whole of network unplanned SAIFI | C13: interruptions/customer | D13: 1.11151241
A14: DQS0104 | B14: Whole of network unplanned SAIFI excluding excluded outages | C14: interruptions/customer | D14: 1.080658329
B15: EXCLUSIVE OF MEDs
A16: DQS0105 | B16: Whole of network unplanned SAIDI | C16: minutes/customer | D16: 86.67149515
A17: DQS0106 | B17: Whole of network unplanned SAIDI excluding excluded outages | C17: minutes/customer | D17: 85.18775589
A18: DQS0107 | B18: Whole of network unplanned SAIFI | C18: interruptions/customer | D18: 0.8224602643
A19: DQS0108 | B19: Whole of network unplanned SAIFI excluding excluded outages | C19: interruptions/customer | D19: 0.7916061834
B21: 3.6.2 - ENERGY NOT SUPPLIED
D22: (0's)
C23: Units | D23: =CRY -> 2015-16
A24: DQS0201 | B24: Energy Not Supplied (planned) | C24: GWh | D24: 1.163463372
A25: DQS0202 | B25: Energy Not Supplied (unplanned) | C25: GWh | D25: 2.22896613
A26: DQS02 | B26: Total | D26: =SUM(D24:D25) -> 3.392429502
B28: 3.6.3 - SYSTEM LOSSES
D29: (0's)
C30: Unit | D30: =CRY -> 2015-16
A31: DQS03 | B31: System losses | C31: % | D31: 0.03999999863
B33: 3.6.4 - CAPACITY UTILISATION
D34: (0's)
C35: Unit | D35: =CRY -> 2015-16
A36: DQS04 | B36: Overall utilisation | C36: % | D36: 0.44

Sheet 3.7 Operating environment
B1: REGULATORY REPORTING STATEMENT
B2: =dms_TradingName -> Endeavour Energy
B3: =CONCATENATE("Benchmarking RIN response ",CRY) -> Benchmarking RIN response 2015-16
B4: 3.7 OPERATING ENVIRONMENT FACTORS
B7: 3.7.1 - DENSITY FACTORS
D8: (0's)
C9: Units | D9: =CRY -> 2015-16
A10: DOEF0101 | B10: Customer density | C10: Customer / km | D10: 34.16087826
A11: DOEF0102 | B11: Energy density | C11: MWh/customer | D11: 17.2
A12: DOEF0103 | B12: Demand density | C12: kVA / customer | D12: 4.37339612
B14: 3.7.2 - TERRAIN FACTORS
D15: (0's)
D16: =CRY -> 2015-16
A17: DOEF0201 | B17: Rural proportion | C17: % | D17: 0.56
A18: DOEF0202 | B18: Urban and CBD vegetation maintenance spans | C18: Number of spans | D18: 79366
A19: DOEF0203 | B19: Rural vegetation maintenance spans | C19: Number of spans | D19: 78651
A20: DOEF0204 | B20: Total vegetation maintenance spans | C20: Number of spans | D20: 158017
A21: DOEF0205 | B21: Total number of spans | C21: Number of spans | D21: 301973
A22: DOEF0206 | B22: Average urban and CBD vegetation maintenance span cycle | C22: Years | D22: 1
A23: DOEF0207 | B23: Average rural vegetation maintenance span cycle | C23: Years | D23: 1
A24: DOEF0208 | B24: Average number of trees per urban and CBD vegetation maintenance span | C24: Trees | D24: 3.13
A25: DOEF0209 | B25: Average number of trees per rural vegetation maintenance span | C25: Trees | D25: 1.96
A26: DOEF0210 | B26: Average number of defects per urban and CBD vegetation maintenance span | C26: Defects | D26: 1.22
A27: DOEF0211 | B27: Average number of defects per rural vegetation maintenance span | C27: Defects | D27: 0.75
A28: DOEF0212 | B28: Tropical proportion | C28: Spans | D28: 0
A29: DOEF0213 | B29: Standard vehicle access | C29: km | D29: 17199
A30: DOEF0214 | B30: Bushfire risk | C30: Spans | D30: 107620
B32: 3.7.3 - SERVICE AREA FACTORS
D33: (0's)
D34: =CRY -> 2015-16
A35: DOEF0301 | B35: Route Line length | C35: km | D35: 28346.85

Sheet NSP amendments
B1: =CONCATENATE(dms_TradingName," data amendments") -> Endeavour Energy data amendments
B2: Amended Table | C2: Comments
